Cogmind - Beta 10.1 @@@ ROGUE MODE // 2020.10.15 @ 23:22:50 Player: Vectis Result: Escaped! Performance ------------- Evolutions (9) 4500 Regions Visited (28) 5600 Robots Destroyed (576) 2880 Value Destroyed (33191) 33191 Prototype IDs (116) 2320 Alien Tech Used (3) 600 Bonus (21375) 21375 TOTAL SCORE: 70466 Bonus ------- High Alert Combat Kills 3242 Follower Combat Kills 7029 Entered Garrisons 1200 Used RIF Installer 2500 Network Hubs Disabled 400 Aligned with FarCom 300 Built Enhanced Grunts 300 A7 Reached Mainframe 300 Met R17 at Cetus 500 Met R17 at Research 2000 Met Sigix 2000 Win 3000 Friendly Fire -1396 Cogmind --------- Core Integrity 1539/1600 Matter 224/300 Energy 848/850 System Corruption 7% Temperature Cool (0) Movement Rolling (210) Ox12 Location To Epsilon Eridani Parts ------- > --- POWER (1) -------- Quantum Reactor > --- PROPULSION (2) --- Centrium Wheel Centrium Wheel > --- UTILITY (20) ----- Experimental Heat Sink High-capacity Storage Unit High-capacity Storage Unit High-capacity Storage Unit High-capacity Storage Unit High-capacity Storage Unit High-capacity Storage Unit High-capacity Storage Unit High-capacity Storage Unit High-capacity Storage Unit High-capacity Storage Unit High-capacity Storage Unit Energy Well Advanced Visual Processing Unit Advanced Signal Interpreter Experimental Targeting Computer Improved Overload Amplifier Improved Weapon Shielding Advanced Hacking Suite System Purifier > --- WEAPON (2) ------- Force Lance > --- INVENTORY (92) --- Quantum Reactor Armored Heavy Treads Advanced Heavy Treads Centrium Heavy Treads Centrium Heavy Treads Advanced Heavy Siege Treads Centrium Wheel Centrium Wheel Advanced Coolant Injector High-capacity Storage Unit High-capacity Storage Unit High-capacity Storage Unit Energy Well (500) Energy Well (500) Improved Energy Well (600) Experimental Matter Compressor (500) Quantum Shading Machine Advanced Target Analyzer Advanced Transmission Jammer Advanced ECM Suite Experimental Phase Shifter Experimental Phase Shifter Improved Weapon Shielding Medium Reflective Plating Medium Reflective Plating Medium Reflective Plating Medium Reflective Plating Medium Reflective Plating Medium Reflective Plating Medium Reflective Plating Medium Reflective Plating Experimental Focal Shield Experimental Thermal Shield EM Dispersion Field EM Dispersion Field EM Dispersion Field Advanced Force Field Advanced Force Field Point Defense Array Relay Coupler [NC] (41) Relay Coupler [NC] (37) Relay Coupler [NC] (38) Relay Coupler [NC] (42) Relay Coupler [NC] (37) Relay Coupler [NC] (37) Relay Coupler [NC] (39) Relay Coupler [Sentry] (30) Relay Coupler [Sentry] (33) Relay Coupler [Sentry] (33) Advanced Field Recycling Unit (23) Drone Bay (2/2) Chronowheel Dimensional Node Initializer Dimensional Node Initializer Dimensional Node Initializer Transdimensional Reconstructor Transdimensional Reconstructor Transdimensional Reconstructor Subatomic Replicator Advanced Variable Charge Gun Compact HERF Cannon Compact HERF Cannon Latent Energy Streamer EMDS EMDS Enhanced Nova Cannon Railgun Improved KE Penetrator Improved KE Penetrator Tesla Bomb Launcher Tesla Bomb Launcher Smartbomb Launcher Fusion Bomb Launcher Advanced Remote Datajack Advanced Remote Datajack Lance Plasma Lance Plasma Lance Peak State ------------ > --- POWER ------------ Quantum Reactor > --- PROPULSION ------- Centrium Heavy Treads > --- UTILITY ---------- High-capacity Storage Unit High-capacity Storage Unit High-capacity Storage Unit High-capacity Storage Unit High-capacity Storage Unit High-capacity Storage Unit High-capacity Storage Unit High-capacity Storage Unit High-capacity Storage Unit High-capacity Storage Unit High-capacity Storage Unit Advanced Signal Interpreter Improved Weapon Shielding Centrium Medium Armor Plating Phase Armor Advanced Force Field Relay Coupler [NC] > --- WEAPON ----------- EMDS > --- INVENTORY -------- Quantum Reactor Quantum Reactor Quantum Reactor Armored Heavy Treads Advanced Heavy Treads Centrium Heavy Treads Centrium Heavy Treads Advanced Heavy Siege Treads Experimental Heat Sink Advanced Coolant Injector High-capacity Storage Unit High-capacity Storage Unit High-capacity Storage Unit Energy Well Energy Well Energy Well Improved Energy Well High-capacity Matter Pod Experimental Sensor Array Experimental Targeting Computer Advanced Target Analyzer Improved Overload Amplifier Advanced Transmission Jammer Experimental Phase Shifter Experimental Phase Shifter Improved Weapon Shielding Improved Weapon Shielding Layered Heavy Armor Plating Centrium Medium Armor Plating Experimental Focal Shield Experimental Thermal Shield EM Dispersion Field EM Dispersion Field EM Dispersion Field Advanced Force Field Advanced Force Field Phase Redirector Point Defense Array Advanced Hacking Suite Improved System Shield Improved System Shield Relay Coupler [NC] Relay Coupler [NC] Relay Coupler [NC] Relay Coupler [NC] Relay Coupler [NC] Relay Coupler [NC] Relay Coupler [NC] Relay Coupler [NC] Relay Coupler [Sentry] Relay Coupler [Sentry] Relay Coupler [Sentry] Relay Coupler [Sentry] System Purifier Advanced Field Recycling Unit Advanced Drone Bay Chronowheel Dimensional Node Initializer Dimensional Node Initializer Dimensional Node Initializer Transdimensional Reconstructor Transdimensional Reconstructor Transdimensional Reconstructor High-powered Transdimensional Reconstructor Subatomic Replicator Advanced Variable Charge Gun Compact HERF Cannon Latent Energy Streamer EMDS EMDS Enhanced Nova Cannon Railgun Improved KE Penetrator Improved KE Penetrator Tesla Bomb Launcher Tesla Bomb Launcher Fusion Bomb Launcher Advanced Remote Datajack Advanced Remote Datajack Lance Force Lance Plasma Lance Plasma Lance [Rating: 177] Favorites ----------- Power Quantum Reactor Engine Improved Deuterium Engine Power Core Reinforced Fission Core Reactor Quantum Reactor Propulsion Armored Wheel Treads Heavy Treads Leg Carbon-fiber Leg Wheel Armored Wheel Utility High-capacity Storage Unit Device Experimental Heat Sink Storage High-capacity Storage Unit Processor Advanced Signal Interpreter Hackware Relay Coupler [Grunt] Protection Damper Plating Artifact Phase Armor Weapon Lance Energy Gun EM Pulse Gun Energy Cannon EMDS Ballistic Gun Gauss Rifle Ballistic Cannon Magnetic Acceleration Cannon Launcher Tesla Bomb Launcher Special Weapon Plasma Cutter Impact Weapon Heavy Mace Slashing Weapon Greatsword Piercing Weapon Lance Special Melee Weapon Datajack Build | -11 -10 -10 -9 -9 -9 -8 -8 -8 -7 -7 -7 -7 -6 -6 -5 -5 -5 -5 -5 -5 -5 -5 -4 -4 -3 -3 -2 -1 ------- Run | Scr Mat Min Mat Min Exi Min Mat Gar Fac Gar Fac Gar Fac Gar Fac Was Fac Ext Cet Arc Hub Gar Fac Gar Res Qua Res Acc Slots Evolved 18 | . . . 2 . . . 2 . 2 . . . 2 . 2 . . . . . . . 2 . 2 . 2 2 Power . | . . . . . . . . . . . . . . . . . . . . . . . . . . . . . Propulsion . | . . . . . . . . . . . . . . . . . . . . . . . . . . . . . Utility 18 | . . . 2 . . . 2 . 2 . . . 2 . 2 . . . . . . . 2 . 2 . 2 2 Weapon . | . . . . . . . . . . . . . . . . . . . . . . . . . . . . . Parts Attached 1189 | . 17 1 15 4 48 1 11 52 52 53 8 62 34 60 63 23 94 10 3 37 62 64 35 49 10 93 187 41 Power 39 | . 3 . . . 4 . . 3 1 4 . 1 2 4 5 2 1 . . 3 1 2 . . . . 2 1 Engine 21 | . 3 . . . 3 . . 2 1 4 . 1 1 3 3 . . . . . . . . . . . . . Core 5 | . . . . . 1 . . 1 . . . . . . 1 1 1 . . . . . . . . . . . Reactor 13 | . . . . . . . . . . . . . 1 1 1 1 . . . 3 1 2 . . . . 2 1 Propulsion 120 | . 5 . 1 . 8 . . 4 11 4 . 12 1 13 9 3 3 . . 10 2 3 4 5 . 10 4 8 Treads 45 | . 2 . 1 . 6 . . 4 5 . . 5 . . . . 1 . . 10 . 1 1 1 . 4 2 2 Leg 11 | . . . . . 2 . . . . . . . . 9 . . . . . . . . . . . . . . Wheel 64 | . 3 . . . . . . . 6 4 . 7 1 4 9 3 2 . . . 2 2 3 4 . 6 2 6 Hover . | . . . . . . . . . . . . . . . . . . . . . . . . . . . . . Flight . | . . . . . . . . . . . . . . . . . . . . . . . . . . . . . Utility 539 | . 1 1 7 . 19 . 3 19 24 30 . 22 11 25 23 16 45 2 2 15 27 34 18 20 5 39 107 24 Device 179 | . . . 1 . 7 . . 5 10 7 . 2 . 3 4 8 1 . . 1 9 4 7 7 . 23 63 17 Storage 147 | . 1 1 5 . 9 . 1 4 3 15 . 11 3 15 3 2 15 . 2 9 7 22 5 7 2 1 3 1 Processor 6 | . . . . . . . . . . . . . . 2 1 . . . . . . . . . . 1 . 2 Hackware 66 | . . . . . . . 1 . 2 . . 4 5 2 9 . 11 2 . 3 2 4 4 3 3 5 6 . Protection 139 | . . . 1 . 3 . 1 10 9 8 . 5 3 3 6 6 18 . . 2 9 4 2 3 . 8 34 4 Artifact 2 | . . . . . . . . . . . . . . . . . . . . . . . . . . 1 1 . Weapon 491 | . 8 . 7 4 17 1 8 26 16 15 8 27 20 18 26 2 45 8 1 9 32 25 13 24 5 44 74 8 Energy Gun 46 | . 5 . 5 2 4 . . 2 8 . 1 . . . . . 13 . . 2 . 2 . . 1 . . 1 Energy Cannon 111 | . . . . 1 5 1 3 2 5 9 2 10 3 . . . 2 . . . 2 9 5 11 1 11 27 2 Ballistic Gun 107 | . 3 . . 1 6 . 3 12 . 3 3 . 9 11 9 . 2 . . 4 7 3 2 . . 8 19 2 Ballistic Cannon 2 | . . . . . . . . 1 1 . . . . . . . . . . . . . . . . . . . Launcher 28 | . . . 2 . 2 . . 3 . 1 . . . . 3 . 7 2 1 . . . . . . 1 4 2 Special Weapon 86 | . . . . . . . . . 1 1 1 9 6 6 8 2 4 2 . 2 12 7 2 9 1 10 3 . Impact Weapon 2 | . . . . . . . . . . . . . . . . . . . . . . 2 . . . . . . Slashing Weapon 10 | . . . . . . . 2 6 . . . . . . . . . 2 . . . . . . . . . . Piercing Weapon 91 | . . . . . . . . . 1 1 1 2 . 1 6 . 17 2 . 1 11 2 4 4 2 14 21 1 Special Melee Weapon 8 | . . . . . . . . . . . . 6 2 . . . . . . . . . . . . . . . Unidentified Prototypes 28 | . . . . 2 9 . . . 2 . 2 . . . 1 . . . . 3 5 2 . . . 1 1 . Parts Lost 94 | . 5 . 4 . 11 1 . 13 1 9 3 1 3 6 15 . 3 . . . . . 2 . . 1 9 7 Power 15 | . . . . . 2 . . 2 . . . . 1 2 4 . 1 . . . . . . . . . 2 1 Propulsion 21 | . 1 . 1 . 6 . . 1 . 2 1 . 1 1 5 . 1 . . . . . . . . . 1 . Utility 26 | . . . . . 2 . . 3 1 3 . . 1 2 2 . . . . . . . 1 . . . 5 6 Weapon 32 | . 4 . 3 . 1 1 . 7 . 4 2 1 . 1 4 . 1 . . . . . 1 . . 1 1 . Highest Loss Streak 6 | . 4 . 2 . 6 1 . 5 1 5 2 1 2 3 4 . 1 . . . . . 2 . . 1 3 5 Average Slot Usage (%) 87 | . 98 100 92 99 81 88 87 98 99 90 99 91 98 93 98 90 89 92 94 72 85 76 94 84 94 90 87 94 Engine 2 | . 13 14 11 11 8 11 9 4 7 6 7 4 3 2 2 . . . . . . . . . . . . . Reactor 2 | . . . . . . . . . . . . . 1 . 1 4 . . . 1 5 4 5 5 4 4 3 4 Treads 4 | . 11 28 22 22 17 . . 15 8 . . 6 . . . . . 5 5 4 2 4 . 3 . 2 3 . Leg 1 | . 8 . . . 4 22 18 2 . . . . . 5 . . . . . . . . . . . . . . Wheel 5 | . 6 . . . . . . . 6 14 15 8 12 7 10 10 8 . . . 5 . 9 2 9 3 . 6 Device 3 | . . . . . 3 . . 2 7 6 . 1 . 4 1 4 . . . 1 1 1 1 11 4 5 6 8 Storage 41 | . 27 28 29 44 27 33 35 44 45 45 61 27 52 40 51 47 54 52 63 45 41 39 52 32 48 49 47 47 Hackware 9 | . . . . . . . . . . . . 26 8 13 12 2 2 17 5 7 10 14 16 15 21 9 7 4 Protection 4 | . . . 7 . 1 . 6 5 5 6 . 3 3 1 1 3 6 . . . 4 5 . 8 . 2 5 9 Energy Gun 1 | . 16 28 21 21 9 . . . 10 . . . . . . . 2 . . 2 . . . . 2 . . . Energy Cannon 2 | . . . . . 3 22 17 1 4 8 8 7 2 . . . . . . . . . 1 2 1 1 2 2 Ballistic Gun 1 | . 10 . . . 2 . . 14 . . 5 . 8 5 4 . . . . 1 3 . . . . . . . Special Weapon 1 | . . . . . . . . . . . . . 1 3 1 5 1 3 . 1 2 . 1 . . . . . Piercing Weapon 1 | . . . . . . . . . . . . . . 2 4 5 2 3 . . 3 . 2 . . 1 1 . Naked Turns 18 | . . . . . . . . . . 13 . 5 . . . . . . . . . . . . . . . . Heaviest Build 456 | 12 21 33 73 73 163 163 202 200 188 231 234 234 254 260 279 305 367 322 364 383 330 328 392 363 394 434 456 430 Greatest Support 80 | 20 40 40 40 40 60 60 60 60 46 24 24 40 24 30 28 28 70 70 70 70 70 70 70 80 24 80 80 70 Greatest Overweight (x) 21 | . 1 . 1 1 3 2 3 4 17 9 9 11 10 10 21 12 15 4 5 5 11 10 12 19 16 16 12 13 Average Overweight (x) 5 | . . . . 1 2 2 2 3 6 6 9 4 9 6 9 10 11 4 4 3 7 3 10 4 14 9 5 12 Largest Inventory Capacity 92 | 6 10 14 28 28 40 40 48 48 56 62 62 62 62 74 74 70 88 76 84 92 68 76 92 84 92 92 92 92 Average Capacity 56 | 6 9 13 18 28 34 40 47 43 47 46 62 32 61 47 69 64 77 76 82 66 60 58 84 52 86 87 91 92 Most Carried 92 | 6 10 11 28 28 40 40 48 48 48 62 62 62 62 71 70 70 84 76 84 92 68 76 85 84 88 92 92 90 Average Carried 44 | 6 9 10 17 27 30 39 42 41 47 19 61 22 60 32 68 64 74 74 81 38 57 29 81 50 84 84 88 84 Final Capacity 92 | 6 10 14 28 28 40 40 48 48 48 62 62 62 62 74 64 70 76 76 84 68 60 76 92 84 92 92 92 92 Final Carried 90 | 6 10 11 28 27 40 40 48 48 48 62 62 62 58 71 63 70 71 75 83 68 58 76 84 84 88 90 90 86 Class Distribution -------------------- 38% | Botlord-Mutant 24% | Hauler-Mutant 21% | Commander-Mutant 9% | Bothacker-Mutant 3% | Mutant Dominant Class ---------------- Mutant | -10/Materials Mutant | -10/Mines Hauler-Mutant | -9/Materials Hauler-Mutant | -9/Mines Hauler-Mutant | -9/Exiles Hauler-Mutant | -8/Mines Hauler-Mutant | -8/Materials Hauler-Mutant | -8/Garrison Hauler-Mutant | -7/Factory Hauler-Mutant | -7/Garrison Bothacker-Mutant | -7/Factory Bothacker-Mutant | -7/Garrison Bothacker-Mutant | -6/Factory Botlord-Mutant | -6/Garrison Botlord-Mutant | -5/Factory Botlord-Mutant | -5/Waste Botlord-Mutant | -5/Factory Botlord-Mutant | -5/Extension Botlord-Mutant | -5/Cetus Hauler-Mutant | -5/Archives Botlord-Mutant | -5/Hub_04(d) Commander-Mutant | -5/Garrison Botlord-Mutant | -4/Factory Botlord-Mutant | -4/Garrison Botlord-Mutant | -3/Research Botlord-Mutant | -3/Quarantine Botlord-Mutant | -2/Research Hauler-Mutant | -1/Access Resources | -11 -10 -10 -9 -9 -9 -8 -8 -8 -7 -7 -7 -7 -6 -6 -5 -5 -5 -5 -5 -5 -5 -5 -4 -4 -3 -3 -2 -1 ----------- Run | Scr Mat Min Mat Min Exi Min Mat Gar Fac Gar Fac Gar Fac Gar Fac Was Fac Ext Cet Arc Hub Gar Fac Gar Res Qua Res Acc Matter Collected 25298 | 201 365 10 190 39 1342 10 68 1211 549 615 391 715 699 1563 1436 711 1767 421 74 440 1106 1410 600 1217 110 1951 4831 1256 Remotely . | . . . . . . . . . . . . . . . . . . . . . . . . . . . . . Salvage Created 37161 | 56 895 . 873 29 663 162 114 1126 847 1512 564 179 379 1366 2739 1989 4131 442 140 200 2007 670 1269 1098 . 2356 8749 2606 Parts 1485 | 2 47 . 60 3 75 8 11 60 35 69 17 8 17 48 98 51 166 14 6 18 82 13 42 32 . 73 341 89 Haulers Intercepted 20 | . 2 . 5 . . . 1 . . . . . . . 4 . 2 . . . 1 . 1 . . 1 3 . Recyclers Shooed 21 | . 1 . 1 . . . . . . . 2 . 3 . 4 . 1 . . . . . . . . . 6 3 Parts Field Recycled 13 | . . . . . . . . . . . . . . . . . . . . . . . . . . . 13 . Retrieved Matter 317 | . . . . . . . . . . . . . . . . . . . . . . . . . . . 317 . Parts Self-Destructed . | . . . . . . . . . . . . . . . . . . . . . . . . . . . . . Prevented . | . . . . . . . . . . . . . . . . . . . . . . . . . . . . . Kills | -11 -10 -10 -9 -9 -9 -8 -8 -8 -7 -7 -7 -7 -6 -6 -5 -5 -5 -5 -5 -5 -5 -5 -4 -4 -3 -3 -2 -1 ------- Run | Scr Mat Min Mat Min Exi Min Mat Gar Fac Gar Fac Gar Fac Gar Fac Was Fac Ext Cet Arc Hub Gar Fac Gar Res Qua Res Acc Combat Hostiles Destroyed 434 | . 18 . 11 2 3 3 . 26 13 28 10 3 2 15 27 6 58 4 2 . 18 10 16 12 . 30 91 26 Melee 67 | . . . . . . . . 3 2 . 1 . . . 10 5 11 . . . 10 . 3 . . 10 12 . Guns 136 | . 17 . 9 2 1 . . 12 8 . 7 . 2 15 9 . 14 . . . 3 . 6 . . 7 20 4 Cannons 83 | . . . . . . 2 . 1 2 27 2 3 . . . 1 . . . . 4 7 1 4 . 7 21 1 AOE 52 | . 1 . 2 . 2 . . 10 . . . . . . 6 . 15 3 1 . 1 . . . . . 3 8 Classes Destroyed 20 | 1 6 . 3 . 3 1 . 1 2 . . . . . . 1 1 . . . 1 . . . . . . . Worker 23 | . 3 . 1 . . . . . 3 . . . . . 4 . 2 2 . . 3 . 1 . . 1 2 1 Builder 10 | . . . 1 . . . . . . . . . . . 2 . 3 . . . . . . . . 1 3 . Tunneler 1 | . . . 1 . . . . . . . . . . . . . . . . . . . . . . . . . Hauler 20 | . 2 . 5 . . . 1 . . . . . . . 4 . 2 . . . 1 . 1 . . 1 3 . Recycler 32 | 1 3 . 1 . . . . . 1 . 1 . 2 . 4 . 1 1 . . 4 . . . . . 11 2 Operator 9 | . 2 . 1 . . . 1 . . . . . . . . . . . . 5 . . . . . . . . Turret 1 | . . . . . 1 . . . . . . . . . . . . . . . . . . . . . . . Watcher 27 | . 1 . 2 . . . 1 1 1 . . . . . 1 . 4 . . . . . 1 1 . 2 10 2 Swarmer 46 | . 9 . 3 2 . . . 3 . 7 2 1 . . . . 8 . . . . . . . . . 11 . Grunt 203 | . 9 . 7 . . 2 . 15 7 15 7 2 1 15 16 . 29 3 . . 3 6 7 8 . 10 25 16 Brawler 5 | . . . . . . . . . . . . . . . . . 1 1 . . 1 . . . . . 1 1 Duelist 7 | . . . . . . 1 . 1 . 1 . . . . . . 3 . . . . . . . . . . 1 Protector 2 | . . . . . . . . . . . . . . . . . . . . . 1 . . . . 1 . . Sentry 29 | . . . 1 . . . . 6 1 4 . 1 1 . . . 5 . . . . 4 3 . . . 1 2 Hunter 37 | . . . . . . . . . 1 . . . . . . . 1 . 1 . 2 . 2 4 . 5 19 2 Programmer 86 | . . . . . . . . . 4 1 1 . . . 11 . 11 . . . 5 . 4 . . 12 33 4 Behemoth 2 | . . . . . . . . 1 . . . . . . . . . . . . . . . . . . 1 . Compactor 6 | . . . . . . . . . . . . . . . . 6 . . . . . . . . . . . . Cetus Guard 1 | . . . . . . . . . . . . . . . . . . . 1 . . . . . . . . . Lightning 9 | . . . . . . . . . . . . . . . . . . . . . 6 . . . . 3 . . Zionite 8 | . . . . . 8 . . . . . . . . . . . . . . . . . . . . . . . Assembled 7 | . . . . . 7 . . . . . . . . . . . . . . . . . . . . . . . Thug 1 | . . . 1 . . . . . . . . . . . . . . . . . . . . . . . . . Best Kill Streak 15 | 1 7 . 6 2 4 3 1 8 4 5 3 2 2 3 10 1 9 4 1 1 4 3 7 2 . 5 15 12 Combat Bots Only 12 | . 5 . 5 2 2 3 . 8 4 5 3 2 1 3 4 1 5 4 1 . 4 3 6 2 . 4 12 10 Max Kills in Single Turn 5 | 1 2 . 2 1 5 1 1 2 2 2 1 1 1 1 3 1 3 3 1 1 2 2 2 1 . 2 3 4 Gunslinging 1 | . 1 . . . . . . . . . . . . . . . . . . . . . 1 . . . . . Exploded 3 | . 1 . 2 . 1 . . 2 . . . . . . 2 . 2 2 1 . 1 . . . . . 3 2 Melee 1 | . . . . . . . . 1 1 . 1 . . . 1 1 1 . . . 1 . 1 . . 1 1 . Uniques/NPCs Destroyed 2 | . . . . . 2 . . . . . . . . . . . . . . . . . . . . . . . 8R-AWN (-9/Exiles) EX-DEC (-9/Exiles) EX-BIN (-9/Exiles) EX-HEX (-9/Exiles) Combat | -11 -10 -10 -9 -9 -9 -8 -8 -8 -7 -7 -7 -7 -6 -6 -5 -5 -5 -5 -5 -5 -5 -5 -4 -4 -3 -3 -2 -1 -------- Run | Scr Mat Min Mat Min Exi Min Mat Gar Fac Gar Fac Gar Fac Gar Fac Was Fac Ext Cet Arc Hub Gar Fac Gar Res Qua Res Acc Damage Taken 32589 | . 675 . 589 48 2183 146 . 2926 707 1686 1034 707 798 1584 3822 . 3020 87 28 . 1146 618 1473 362 25 1967 5625 1333 Core 3845 | . 113 . 61 . 285 16 . 390 73 135 106 80 133 160 492 . 180 20 . . 89 14 266 7 . 432 732 61 Absorbed by Shields 1552 | . . . . . . . . 202 . 55 . 24 . 55 18 . . . 26 . . . . 91 . 197 555 329 Reduced by Siege Mode 294 | . . . . . . . . . . . . . . . . . . . . . 32 4 18 4 . 41 187 8 Redirected to Core 713 | . . . . . . . . . . . . . . . . . . . . . . . . . . 247 466 . Core Remaining (%) 54 | 100 . 54 . . . 9 . 29 . . . 43 . 65 . . . . . . . 20 . 76 . 66 44 96 Volleys Fired 1748 | 1 83 . 59 7 117 6 5 86 44 104 44 48 51 112 115 55 98 15 2 17 79 74 38 66 5 113 257 47 Largest 2 | 2 2 . 2 2 2 2 2 2 2 2 2 2 2 2 2 1 2 1 2 1 2 1 2 1 1 2 2 2 Hottest 240 | 70 100 . 80 80 112 112 112 112 150 150 180 180 90 58 58 40 80 46 92 40 70 70 70 70 63 70 120 240 Shots Fired 2588 | 2 163 . 118 14 211 11 7 160 88 185 83 54 67 168 167 55 180 15 4 17 97 74 53 66 5 133 324 67 Gun 1448 | 2 163 . 114 14 169 . 3 135 76 . 71 . 38 129 125 . 105 . . . 53 2 30 . 4 54 129 32 Cannon 644 | . . . . . 36 11 4 16 12 179 12 28 6 . . . 1 . . . 11 35 19 37 . 39 180 18 Launcher 92 | . . . 4 . 6 . . 9 . 3 . . . . 7 . 31 4 4 . . . . . . . 7 17 Special 404 | . . . . . . . . . . 3 . 26 23 39 35 55 43 11 . 17 33 37 4 29 1 40 8 . Kinetic 1072 | 1 104 . . . 134 . 3 134 . . 71 . 38 129 125 . 41 . . . 53 2 30 . . 54 129 24 Thermal 458 | 1 25 . . . . . . . 88 182 12 28 6 16 . 47 1 . . 8 19 . . . 4 . 13 8 Explosive 25 | . . . 4 . 6 . . 9 . 3 . . . . . . . . . . . . . . . . 3 . Electromagnetic 722 | . 34 . 114 14 71 11 4 17 . . . . . . 7 . 95 4 4 . 11 35 19 37 . 39 171 35 Robot Hit Streak 47 | 2 14 . 12 1 47 8 3 12 29 27 11 16 21 16 11 10 12 16 . 18 15 25 22 16 1 19 23 19 Robot Miss Streak 11 | . 4 . 3 10 3 1 1 3 2 3 11 2 6 5 7 2 3 . . 2 3 1 1 3 . 2 4 1 Penetration Max 1 | . . . . . 1 . . . . . . . . . 1 . 1 . . . 1 1 1 1 . 1 1 1 Secondary Targets 14 | . 3 . . . . . . . . . . . . 4 1 . . . . . 1 . 1 . . 2 2 . Max Gunslinging Chain 1 | . 1 . . . . . . . . . . . . 1 1 . . . . . 1 . 1 . . 1 1 . Autonomous 63 | . . . . . . . . . . . . . . . . . 63 . . . . . . . . . . . Shots Hit Robots 2154 | 2 101 . 70 2 171 9 3 125 69 115 70 41 56 133 166 77 186 14 . 20 112 52 47 50 1 137 287 38 Core Hits 1004 | 2 49 . 33 2 62 5 3 67 28 54 40 4 22 65 96 14 114 9 2 9 48 9 22 13 . 53 135 44 Critical Hits 166 | . 1 . . . 15 . . 4 . 2 1 . 1 4 3 8 3 . . . 14 2 6 10 . 24 62 6 Critical Kills 65 | . 1 . . . 4 . . . . 2 1 . . 1 2 2 1 . . . 7 1 2 3 . 13 21 4 Critical Parts Destroyed 83 | . . . . . 8 . . 1 . . . . 1 3 1 1 2 . . . 7 1 2 7 . 11 36 2 Melee Attacks 547 | . . . . . . . . 28 2 11 1 25 2 8 62 36 76 11 . 10 70 29 5 15 3 83 69 1 Impact 9 | . . . . . . . . . . . . . . . . . . . . . . 9 . . . . . . Slashing 35 | . . . . . . . . 28 . . . . . . . . . 7 . . . . . . . . . . Piercing 484 | . . . . . . . . . 2 11 1 8 . 8 62 36 76 4 . 10 70 20 5 15 3 83 69 1 Sneak Attacks 62 | . . . . . . . . . . . . 1 1 . 6 36 . . . 7 6 . . . . 1 4 . Combat Hostiles 37 | . . . . . . . . . . . . 1 . . . 36 . . . . . . . . . . . . Follow-up Attacks 37 | . . . . . . . . . . . . . . . 6 . 8 . . . 10 . . . . 6 7 . Damage Inflicted 69597 | 21 1135 . 1354 38 2491 198 103 2878 1496 2981 1041 306 855 2567 5599 2286 7725 663 317 842 3602 999 2609 2392 . 4931 16215 3953 Guns 21145 | 21 1072 . 860 38 1779 . 40 1223 1168 . 726 . 732 1829 2095 . 2430 . . . 738 . 692 . . 1222 3890 590 Cannons 20670 | . . . . . 258 198 63 261 243 2824 283 306 123 . . . 8 . . . 426 999 1067 1501 . 1930 9342 838 Explosions 12536 | . 63 . 494 . 454 . . 796 . 124 . . . . 1714 . 3635 630 317 . 192 . 597 . . 43 1040 2437 Melee 14111 | . . . . . . . . 593 75 . 32 . . 559 1784 1785 1652 33 . 785 2066 . 189 891 . 1736 1931 . Ramming 185 | . . . . . . . . 5 10 . . . . . 6 . . . . . . . 64 . . . 12 88 Kinetic 16958 | 9 587 . . . 1748 . 40 1261 . . 726 . 732 1829 2095 . 799 . . . 738 . 692 . . 1222 3890 590 Thermal 7874 | 12 238 . 240 . 21 . . 134 1411 2857 283 306 123 179 200 501 24 . . 57 180 . 597 . . . 388 123 Explosive 2294 | . . . 254 . 332 . . 518 . 124 . . . . 538 . . . . . . . . . . 43 485 . Electromagnetic 28175 | . 310 . 860 38 390 198 63 367 . . . . . . 976 . 5250 630 317 . 618 999 1067 1501 . 1930 9509 3152 Impact . | . . . . . . . . . . . . . . . . . . . . . . . . . . . . . Slashing 593 | . . . . . . . . 593 . . . . . . . . . . . . . . . . . . . . Piercing 13518 | . . . . . . . . . 75 . 32 . . 559 1784 1785 1652 33 . 785 2066 . 189 891 . 1736 1931 . Highest Corruption 77 | . . . 1 1 12 . . 2 5 3 . . 1 1 13 77 4 4 4 4 4 . . . . 6 6 11 Average Corruption 10 | . . . 1 1 3 . . 1 2 2 . . 1 1 6 39 2 4 4 3 2 . . . . 2 3 7 Corruption Purged 172 | . . . . . 12 . . 2 6 4 . . . 1 13 102 . . . 4 5 . . . . 9 10 4 Effects 662 | . . . 6 5 69 . . 9 10 2 . . . . 76 297 20 49 10 13 23 . . . . 9 38 26 Message Errors 166 | . . . 2 1 11 . . 1 4 . . . . . 16 72 8 11 4 4 8 . . . . 4 13 7 Matter Fused 117 | . . . . . 11 . . . 1 2 . . . . 8 54 3 13 1 3 4 . . . . 2 8 7 Heat Flow Errors 51 | . . . . . 8 . . 2 1 . . . . . 6 21 . 5 2 2 . . . . . . 1 3 Energy Discharges 78 | . . . 1 3 7 . . 1 1 . . . . . 5 37 3 7 1 1 1 . . . . 2 4 4 Parts Rejected 7 | . . . . . . . . . . . . . . . 2 5 . . . . . . . . . . . . Data Loss (minor) 93 | . . . 2 1 15 . . 4 1 . . . . . 13 23 3 13 1 3 8 . . . . 1 4 1 Data Loss (major) 17 | . . . . . 1 . . . . . . . . . 2 14 . . . . . . . . . . . . Misfires 3 | . . . . . 1 . . . . . . . . . 1 . . . . . . . . . . . 1 . Alerts 7 | . . . . . 1 . . . . . . . . . . 6 . . . . . . . . . . . . Misdirections 37 | . . . . . 2 . . . . . . . . . 5 30 . . . . . . . . . . . . Targeting Errors 80 | . . . 1 . 9 . . 1 2 . . . . . 16 35 3 . 1 . 2 . . . . . 6 4 Weapon Failures 6 | . . . . . 3 . . . . . . . . . 2 . . . . . . . . . . . 1 . Overload Shots 5 | . . . . . . . . . . . . . . . . . . . . . . . . . . . . 5 Overflow Damage 2182 | . 13 . 24 . . . . 54 . 13 18 17 . 26 359 . 232 18 5 128 173 . 155 91 . 62 747 47 Projectiles 616 | . . . . . . . . . . 13 18 17 . . . . . . . . 39 . 43 37 . 27 422 . Explosions 643 | . 13 . 24 . . . . 34 . . . . . . 205 . 211 2 5 . . . 112 . . . 35 2 Melee 923 | . . . . . . . . 20 . . . . . 26 154 . 21 16 . 128 134 . . 54 . 35 290 45 Knockbacks . | . . . . . . . . . . . . . . . . . . . . . . . . . . . . . Impact . | . . . . . . . . . . . . . . . . . . . . . . . . . . . . . Kinetic . | . . . . . . . . . . . . . . . . . . . . . . . . . . . . . Secondary . | . . . . . . . . . . . . . . . . . . . . . . . . . . . . . Self-Inflicted Damage 695 | . 64 . 75 . 27 . . 28 . 37 . . . . 194 . 70 . . . 9 . 12 . . 106 6 67 Shots 20 | . 2 . 2 . 1 . . 1 . 1 . . . . 5 . 3 . . . 1 . . . . 1 1 2 Rammed 8 | . . . . . . . . 1 . . . . . . 1 . . . . . . . 3 . . . 1 2 Targets Rammed 9 | . . . . . . . . 1 1 . . . . . 1 . . . . . . . 3 . . . 1 2 Kicked . | . . . . . . . . . . . . . . . . . . . . . . . . . . . . . Crushed 1 | . . . . . . . . . 1 . . . . . . . . . . . . . . . . . . . Highest Temperature 461 | 30 156 . 266 54 281 299 54 259 101 48 461 288 120 5 254 269 270 260 254 149 396 78 59 7 . . 297 342 Average Temperature 80 | 19 40 . 89 25 87 160 29 69 23 14 179 65 21 4 36 90 61 90 86 76 155 21 11 2 . . 49 86 Received Heat Transfer 6069 | . 150 . 144 . . 45 . 989 177 561 414 282 291 693 549 . 414 27 . . 135 129 258 52 . 201 455 103 Effects 9 | . . . . . 2 . . . . . . . . . . . . . . . 4 . . . . . 3 . Energy Bleed 5 | . . . . . 2 . . . . . . . . . . . . . . . 3 . . . . . . . Interference 4 | . . . . . . . . . . . . . . . . . . . . . 1 . . . . . 3 . Siege Activations 44 | . . . . . . . . . . . . . . . . . . . . . 1 8 2 8 . 5 16 4 Total Turns 1284 | . . . . . . . . . . . . . . . . . . . . . 20 246 39 406 . 123 405 45 Longest Duration 266 | . . . . . . . . . . . . . . . . . . . . . 20 138 32 266 . 56 71 20 Robots Corrupted 108 | . . . 1 . 3 1 . . . . . . . . 2 . 21 1 1 . . 3 7 8 . 6 41 13 Combat Hostiles 94 | . . . . . . 1 . . . . . . . . 2 . 18 1 1 . . 3 6 8 . 6 35 13 Parts Fried 235 | . 1 . 2 . 6 2 . 2 . . . . . . 4 . 40 5 3 . 6 4 7 14 . 20 88 31 Impact Corruptions 2 | . . . . . . . . . . . . . . . . . . . . . . . . . . . . 2 Robots Melted 2 | . . . . . . . . . 1 1 . . . . . . . . . . . . . . . . . . Combat Hostiles 2 | . . . . . . . . . 1 1 . . . . . . . . . . . . . . . . . . Parts Melted 21 | . 3 . . . . . . . 10 2 1 1 . . 3 . . . . . . . . . . . 1 . Heat Transferred 12476 | 37 568 . 350 . 50 . . 150 2479 4139 296 370 148 592 150 1665 37 . . 185 501 . 400 . . . 259 100 Parts Sabotaged . | . . . . . . . . . . . . . . . . . . . . . . . . . . . . . Parts Stolen . | . . . . . . . . . . . . . . . . . . . . . . . . . . . . . Parts Stripped . | . . . . . . . . . . . . . . . . . . . . . . . . . . . . . Power Chain Reactions 11 | . 2 . 3 . 2 . . 1 . . . . . . . . 1 . . . . . 1 . . . . 1 Missiles Intercepted . | . . . . . . . . . . . . . . . . . . . . . . . . . . . . . Latent Energy Used 778 | . . . . . 400 . . 93 . . . . . . . . 85 . . . 200 . . . . . . . LE Corruption 13 | . . . . . 6 . . 2 . . . . . . . . 2 . . . 3 . . . . . . . Alert | -11 -10 -10 -9 -9 -9 -8 -8 -8 -7 -7 -7 -7 -6 -6 -5 -5 -5 -5 -5 -5 -5 -5 -4 -4 -3 -3 -2 -1 ------- Run | Scr Mat Min Mat Min Exi Min Mat Gar Fac Gar Fac Gar Fac Gar Fac Was Fac Ext Cet Arc Hub Gar Fac Gar Res Qua Res Acc Peak Influence 1220 | 5 401 72 202 57 . 75 69 585 331 925 577 542 636 678 475 67 868 225 476 168 788 998 548 356 256 533 1220 1137 Initial 732 | . 3 72 21 37 . . . 19 306 84 485 192 284 308 355 67 . . 125 110 . 551 523 38 200 66 84 732 Average 447 | 4 197 65 69 34 . 60 19 390 189 749 416 463 430 580 237 4 217 68 307 18 225 936 256 228 146 147 315 983 Maximum Alert Level 4 | . 2 . 1 . . . . 2 1 3 2 2 2 2 2 . 3 1 2 . 3 3 2 1 1 2 4 4 Low Security (%) 33 | 100 49 100 95 100 . 100 100 10 60 8 . 1 . . 42 100 71 94 11 100 54 . 48 36 63 67 61 . Level 1 18 | . 45 . 4 . . . . 48 39 4 57 31 25 15 33 . 11 5 67 . 37 . 17 63 36 24 15 . Level 2 21 | . 5 . . . . . . 41 . 14 42 67 74 84 23 . 10 . 21 . 2 7 34 . . 7 6 . Level 3 25 | . . . . . . . . . . 71 . . . . . . 7 . . . 6 92 . . . . 7 69 Level 4 . | . . . . . . . . . . . . . . . . . . . . . . . . . . . 8 30 Level 5 . | . . . . . . . . . . . . . . . . . . . . . . . . . . . . . High Security . | . . . . . . . . . . . . . . . . . . . . . . . . . . . . . Max Security . | . . . . . . . . . . . . . . . . . . . . . . . . . . . . . Squads Dispatched 126 | . 7 . 3 . . . 1 . 4 . 2 . 7 . 13 . 17 3 . . 11 . 8 . 5 17 26 2 Investigation 22 | . 4 . 1 . . . . . . . . . 2 . . . 4 3 . . . . 2 . 2 2 2 . Extermination 47 | . . . . . . . . . 3 . 2 . 1 . 5 . 5 . . . 7 . 3 . . 6 14 1 Reinforcement 35 | . 3 . 2 . . . . . 1 . . . 1 . 5 . 3 . . . 3 . 3 . 3 6 5 . Assault 8 | . . . . . . . . . . . . . 2 . . . 2 . . . 1 . . . . . 2 1 Garrison 14 | . . . . . . . 1 . . . . . 1 . 3 . 3 . . . . . . . . 3 3 . Intercept . | . . . . . . . . . . . . . . . . . . . . . . . . . . . . . Construction Impeded 13 | . . . 1 . . . . . . . . . 1 . 3 . 1 . . . . . 2 . . 1 4 . Haulers Reinforced 5 | . . . . . . . . . 1 . . . . . 2 . 1 . . . . . . . . . 1 . Stealth | -11 -10 -10 -9 -9 -9 -8 -8 -8 -7 -7 -7 -7 -6 -6 -5 -5 -5 -5 -5 -5 -5 -5 -4 -4 -3 -3 -2 -1 --------- Run | Scr Mat Min Mat Min Exi Min Mat Gar Fac Gar Fac Gar Fac Gar Fac Was Fac Ext Cet Arc Hub Gar Fac Gar Res Qua Res Acc Distress Signals 43 | . 1 . 3 . . . . 2 1 . . . . . 3 . 7 1 2 . 3 . 5 . 6 2 3 4 Communications Jammed . | . . . . . . . . . . . . . . . . . . . . . . . . . . . . . Distress Signals . | . . . . . . . . . . . . . . . . . . . . . . . . . . . . . Times Spotted 843 | . 43 2 21 3 14 2 4 43 22 33 12 25 28 31 63 5 100 18 12 20 43 31 35 27 2 63 109 32 Peak Tracking Total 8 | . 5 2 4 3 8 2 2 6 4 6 3 6 6 4 6 3 8 4 5 1 7 6 7 6 1 6 7 8 Tactical Retreats 72 | . 2 . 6 . 2 . . 7 3 6 . 1 1 4 7 . 7 . . . . 1 2 . . 6 12 5 Traps | -11 -10 -10 -9 -9 -9 -8 -8 -8 -7 -7 -7 -7 -6 -6 -5 -5 -5 -5 -5 -5 -5 -5 -4 -4 -3 -3 -2 -1 ------- Run | Scr Mat Min Mat Min Exi Min Mat Gar Fac Gar Fac Gar Fac Gar Fac Was Fac Ext Cet Arc Hub Gar Fac Gar Res Qua Res Acc Traps Triggered 93 | . . . . . . . . 8 3 9 1 19 . 13 6 . 8 4 . . . 12 . 8 . 1 1 . Indirectly 5 | . . . . . . . . . . . . . . . . . 3 2 . . . . . . . . . . Trap Hack Attempts . | . . . . . . . . . . . . . . . . . . . . . . . . . . . . . Triggered . | . . . . . . . . . . . . . . . . . . . . . . . . . . . . . Disarmed . | . . . . . . . . . . . . . . . . . . . . . . . . . . . . . Reprogrammed 13 | . . . . . . . . . . . . . . . . . . 1 . . 6 . . . 6 . . . Reused 6 | . . . . . . . . . . . . . . . . . . 1 . . 5 . . . . . . . Traps Extracted . | . . . . . . . . . . . . . . . . . . . . . . . . . . . . . Installed . | . . . . . . . . . . . . . . . . . . . . . . . . . . . . . Triggered 13 | . . . . . . . . 1 . . . . . . . . 1 1 . . 5 . 1 . . 3 1 . Power Sources Rigged 10 | . . . . . 5 . . 5 . . . . . . . . . . . . . . . . . . . . Exploded 7 | . . . . . . . . 7 . . . . . . . . . . . . . . . . . . . . Machines | -11 -10 -10 -9 -9 -9 -8 -8 -8 -7 -7 -7 -7 -6 -6 -5 -5 -5 -5 -5 -5 -5 -5 -4 -4 -3 -3 -2 -1 ---------- Run | Scr Mat Min Mat Min Exi Min Mat Gar Fac Gar Fac Gar Fac Gar Fac Was Fac Ext Cet Arc Hub Gar Fac Gar Res Qua Res Acc Machines Disabled 108 | . 1 . . . 12 . . 3 . 10 1 4 6 4 8 . 9 3 . 1 13 5 6 6 . 12 2 2 Max in Single Turn 8 | . 1 . . . 2 . . 1 . 1 1 1 . 1 5 . 1 . . . 8 1 2 1 . 1 1 1 Garrison Access 8 | . . . . . . . . . . . . . 1 . . . 3 . . . 1 . . . . 1 1 1 Garrison Relay 23 | . . . . . . . . 3 . 4 . 4 . 4 . . . . . . . 4 . 4 . . . . Network Hub 2 | . . . . . . . . . . . . . . . . . . . . . 2 . . . . . . . Machines Sabotaged . | . . . . . . . . . . . . . . . . . . . . . . . . . . . . . Garrisons Compromised . | . . . . . . . . . . . . . . . . . . . . . . . . . . . . . Overloaded Fab Kills . | . . . . . . . . . . . . . . . . . . . . . . . . . . . . . Fab Network Shutdowns . | . . . . . . . . . . . . . . . . . . . . . . . . . . . . . Hacking | -11 -10 -10 -9 -9 -9 -8 -8 -8 -7 -7 -7 -7 -6 -6 -5 -5 -5 -5 -5 -5 -5 -5 -4 -4 -3 -3 -2 -1 --------- Run | Scr Mat Min Mat Min Exi Min Mat Gar Fac Gar Fac Gar Fac Gar Fac Was Fac Ext Cet Arc Hub Gar Fac Gar Res Qua Res Acc Machines Accessed 123 | . 7 . 7 . 2 1 5 . 8 . 3 . 6 . 9 . 14 15 2 . 11 . 6 . 9 12 5 1 Terminals 73 | . 4 . 5 . . 1 4 . 4 . 2 . 2 . 4 . 4 15 2 . 9 . 1 . 6 8 2 . Fabricators 9 | . . . . . . . . . 1 . . . 1 . 1 . 2 . . . . . 2 . 1 . 1 . Repair Stations 13 | . 1 . . . . . . . 2 . . . 1 . 2 . 3 . . . . . 1 . . 2 1 . Recycling Units 6 | . 2 . 1 . . . . . . . . . . . . . 2 . . . . . 1 . . . . . Scanalyzers 4 | . . . 1 . . . . . . . . . . . 1 . . . . . . . . . 1 1 . . Garrison Access 16 | . . . . . . . 1 . 1 . 1 . 2 . 1 . 3 . . . 2 . 1 . 1 1 1 1 Total Hacks 490 | . 23 . 18 . 2 2 20 . 19 . 11 . 22 . 34 . 43 53 6 . 61 . 25 . 56 62 27 6 Successful 271 | . 13 . 10 . 2 . 8 . 8 . 6 . 14 . 18 . 26 33 3 . 42 . 13 . 30 30 12 3 Failed 219 | . 10 . 8 . . 2 12 . 11 . 5 . 8 . 16 . 17 20 3 . 19 . 12 . 26 32 15 3 Catastrophic 29 | . . . . . . 1 . . 2 . 1 . . . 1 . 3 2 2 . 1 . 1 . 7 6 1 1 Database Lockouts . | . . . . . . . . . . . . . . . . . . . . . . . . . . . . . Manual 290 | . 18 . 10 . 1 3 16 . 3 . 6 . 10 . 9 . 18 32 4 . 51 . 11 . 32 46 14 6 Terminals 318 | . 16 . 15 . . 2 14 . 7 . 9 . 4 . 21 . 15 53 6 . 56 . 5 . 36 48 11 . Fabricators 38 | . . . . . . . . . 3 . . . 3 . 4 . 6 . . . . . 8 . 9 . 5 . Repair Stations 41 | . 3 . . . . . . . 7 . . . 7 . 5 . 9 . . . . . 2 . . 5 3 . Recycling Units 16 | . 4 . 1 . . . . . . . . . . . . . 7 . . . . . 4 . . . . . Scanalyzers 12 | . . . 2 . . . . . . . . . . . 2 . . . . . . . . . 5 3 . . Garrison Access 63 | . . . . . . . 6 . 2 . 2 . 8 . 2 . 6 . . . 5 . 6 . 6 6 8 6 Terminal Hacks 93 | . 4 . 5 . 2 . 1 . . . 2 . . . 8 . 5 19 1 . 22 . 1 . 9 12 2 . Record 1 | . . . . . 1 . . . . . . . . . . . . . . . . . . . . . . . Part Schematic 4 | . 1 . . . . . . . . . . . . . . . . 1 . . . . . . 1 1 . . Robot Schematic 1 | . . . . . . . . . . . . . . . . . . . . . . . . . 1 . . . Robot Analysis 8 | . 1 . 2 . . . . . . . . . . . . . . 4 . . 1 . . . . . . . Prototype ID Bank 3 | . . . 1 . . . . . . . . . . . 1 . 1 . . . . . . . . . . . Open Door 12 | . . . . . . . . . . . . . . . . . 1 9 1 . . . . . . 1 . . Level Access Points 1 | . . . . . . . . . . . . . . . . . . . . . 1 . . . . . . . Branch Access Points 4 | . . . 1 . . . . . . . . . . . 1 . 1 . . . . . . . 1 . . . Machine Index 2 | . . . . . . . . . . . . . . . . . . . . . . . . . 1 . 1 . Terminal Index 2 | . . . . . . . 1 . . . . . . . . . . . . . 1 . . . . . . . Unreport Threat 12 | . . . . . . . . . . . . . . . 3 . 1 . . . 4 . . . 1 2 1 . Locate Traps 10 | . . . 1 . . . . . . . . . . . 2 . . 2 . . 1 . . . 2 2 . . Reprogram Traps 3 | . . . . . . . . . . . . . . . . . . 1 . . 1 . . . 1 . . . Maintenance Status 1 | . . . . . . . . . . . . . . . . . . . . . 1 . . . . . . . Security Status 3 | . . . . . . . . . . . 1 . . . . . . . . . 2 . . . . . . . Patrol Status 2 | . . . . . . . . . . . . . . . . . . . . . 1 . . . . 1 . . Recall Investigation 3 | . . . . . . . . . . . . . . . . . . 2 . . . . . . . 1 . . Recall Extermination 2 | . . . . . . . . . . . . . . . . . . . . . 1 . . . . 1 . . Recall Reinforcements 5 | . 2 . . . . . . . . . . . . . . . . . . . 1 . 1 . . 1 . . Hauler Manifests 1 | . . . . . . . . . . . . . . . . . . . . . . . . . . 1 . . Zone Layout 12 | . . . . . . . . . . . 1 . . . 1 . 1 . . . 7 . . . 1 1 . . EX-Prototype ID Bank 1 | . . . . . 1 . . . . . . . . . . . . . . . . . . . . . . . Fabricator Hacks 23 | . . . . . . . . . 2 . . . 2 . 2 . 5 . . . . . 3 . 6 . 3 . Network Status 1 | . . . . . . . . . . . . . 1 . . . . . . . . . . . . . . . Load Schematic 10 | . . . . . . . . . 1 . . . 1 . 1 . 2 . . . . . 1 . 3 . 1 . Build 12 | . . . . . . . . . 1 . . . . . 1 . 3 . . . . . 2 . 3 . 2 . Repair Station Hacks 28 | . 2 . . . . . . . 4 . . . 6 . 2 . 6 . . . . . 2 . . 4 2 . Scan Component 15 | . 1 . . . . . . . 3 . . . 3 . 1 . 3 . . . . . 1 . . 2 1 . Repair 13 | . 1 . . . . . . . 1 . . . 3 . 1 . 3 . . . . . 1 . . 2 1 . Recycling Unit Hacks 2 | . 1 . . . . . . . . . . . . . . . . . . . . . 1 . . . . . Retrieve Components 2 | . 1 . . . . . . . . . . . . . . . . . . . . . 1 . . . . . Scanalyzer 10 | . . . 2 . . . . . . . . . . . 2 . . . . . . . . . 4 2 . . Insert Component 7 | . . . 1 . . . . . . . . . . . 1 . . . . . . . . . 3 2 . . Analyze 3 | . . . 1 . . . . . . . . . . . 1 . . . . . . . . . 1 . . . Garrison Access Hacks 15 | . . . . . . . 1 . 1 . 1 . 2 . 1 . 4 . . . 2 . 1 . . 1 1 . Unlock Access 8 | . . . . . . . 1 . 1 . 1 . 2 . 1 . . . . . 1 . 1 . . . . . Seal Access 6 | . . . . . . . . . . . . . . . . . 3 . . . 1 . . . . 1 1 . Coupler Status 1 | . . . . . . . . . . . . . . . . . 1 . . . . . . . . . . . Unauthorized Hacks 100 | . 6 . 3 . . . 6 . 1 . 3 . 4 . 3 . 6 14 2 . 18 . 5 . 11 11 4 3 Terminals 68 | . 4 . 2 . . . 3 . 1 . 3 . 1 . 3 . 2 14 2 . 16 . . . 5 10 2 . Track 29 | . . . . . . . 1 . . . 2 . . . 2 . 1 5 1 . 9 . . . 3 4 1 . Assimilate 1 | . . . . . . . 1 . . . . . . . . . . . . . . . . . . . . . Botnet 26 | . 2 . 2 . . . 1 . 1 . 1 . 1 . 1 . 1 8 . . 2 . . . 2 3 1 . Disrupt 8 | . . . . . . . . . . . . . . . . . . . 1 . 4 . . . . 3 . . Operators 2 | . . . . . . . . . . . . . . . . . . 1 . . 1 . . . . . . . Search 2 | . 2 . . . . . . . . . . . . . . . . . . . . . . . . . . . Fabricators 4 | . . . . . . . . . . . . . . . . . . . . . . . 3 . 1 . . . Prioritize 1 | . . . . . . . . . . . . . . . . . . . . . . . 1 . . . . . Siphon 2 | . . . . . . . . . . . . . . . . . . . . . . . 1 . 1 . . . Haulers 1 | . . . . . . . . . . . . . . . . . . . . . . . 1 . . . . . Repair Stations 1 | . . . . . . . . . . . . . . . . . 1 . . . . . . . . . . . Mechanics 1 | . . . . . . . . . . . . . . . . . 1 . . . . . . . . . . . Recycling Units 8 | . 2 . 1 . . . . . . . . . . . . . 3 . . . . . 2 . . . . . Reject 1 | . . . . . . . . . . . . . . . . . 1 . . . . . . . . . . . Recyclers 2 | . . . . . . . . . . . . . . . . . 1 . . . . . 1 . . . . . Mask 2 | . . . . . . . . . . . . . . . . . 1 . . . . . 1 . . . . . Tunnel 3 | . 2 . 1 . . . . . . . . . . . . . . . . . . . . . . . . . Scanalyzers . | . . . . . . . . . . . . . . . . . . . . . . . . . . . . . Garrison Access 19 | . . . . . . . 3 . . . . . 3 . . . . . . . 2 . . . 5 1 2 3 Decoy 2 | . . . . . . . . . . . . . . . . . . . . . . . . . . . 1 1 Reprogram 11 | . . . . . . . 1 . . . . . 2 . . . . . . . 1 . . . 4 1 1 1 Intercept 5 | . . . . . . . 1 . . . . . 1 . . . . . . . 1 . . . 1 . . 1 Watchers 1 | . . . . . . . 1 . . . . . . . . . . . . . . . . . . . . . Data Cores Recovered 1 | . . . . . . . . . . . . . . . . . . . . . 1 . . . . . . . Used . | . . . . . . . . . . . . . . . . . . . . . . . . . . . . . Hacking Detections 108 | . 7 . 6 . . 1 5 . 8 . 3 . 6 . 9 . 12 12 2 . 10 . 6 . 7 8 5 1 Full Trace Events 9 | . . . 1 . . . . . . . . . 2 . . . . 2 . . . . 1 . 1 1 1 . Feedback Events 1 | . . . 1 . . . . . . . . . . . . . . . . . . . . . . . . . Corruption 1 | . . . 1 . . . . . . . . . . . . . . . . . . . . . . . . . Feedback Blocked . | . . . . . . . . . . . . . . . . . . . . . . . . . . . . . Robot Schematics Acquired 1 | . . . . . . . . . . . . . . . . . . . . . . . . . 1 . . . Robots Built 1 | . . . . . . . . . . . . . . . . . . . . . . . . . 1 . . . Matter 351 | . . . . . . . . . . . . . . . . . . . . . . . . . 351 . . . Time 93 | . . . . . . . . . . . . . . . . . . . . . . . . . 93 . . . Total Robot Build Rating 7 | . . . . . . . . . . . . . . . . . . . . . . . . . 7 . . . Part Schematics Acquired 7 | . 1 . 1 . . . . . . . . . . . 1 . . 1 . . . . . . 2 1 . . Parts Built 10 | . . . . . . . . . 1 . . . . . 1 . 3 . . . . . 2 . 1 . 2 . Matter 1543 | . . . . . . . . . 102 . . . . . 102 . 306 . . . . . 178 . 285 . 570 . Time 403 | . . . . . . . . . 25 . . . . . 25 . 101 . . . . . 76 . 76 . 100 . Total Part Build Rating 22 | . . . . . . . . . 1 . . . . . 1 . 3 . . . . . 2 . 5 . 10 . Parts Repaired 13 | . 1 . . . . . . . 1 . . . 3 . 1 . 3 . . . . . 1 . . 2 1 . Time 297 | . 13 . . . . . . . 13 . . . 78 . 13 . 61 . . . . . 8 . . 103 8 . Parts Recycled . | . . . . . . . . . . . . . . . . . . . . . . . . . . . . . Recycled Matter . | . . . . . . . . . . . . . . . . . . . . . . . . . . . . . Retrieved Matter . | . . . . . . . . . . . . . . . . . . . . . . . . . . . . . Retrieved Components 4 | . 3 . . . . . . . . . . . . . . . . . . . . . 1 . . . . . Parts Scanalyzed 3 | . . . 1 . . . . . . . . . . . 1 . . . . . . . . . 1 . . . Part Schematics Acquired 3 | . . . 1 . . . . . . . . . . . 1 . . . . . . . . . 1 . . . Parts Damaged . | . . . . . . . . . . . . . . . . . . . . . . . . . . . . . Bothacking | -11 -10 -10 -9 -9 -9 -8 -8 -8 -7 -7 -7 -7 -6 -6 -5 -5 -5 -5 -5 -5 -5 -5 -4 -4 -3 -3 -2 -1 ------------ Run | Scr Mat Min Mat Min Exi Min Mat Gar Fac Gar Fac Gar Fac Gar Fac Was Fac Ext Cet Arc Hub Gar Fac Gar Res Qua Res Acc Used RIF Installer 5 | . . . . . . . . 1 . 1 . 1 . 1 . . . . . . . 1 . . . . . . Coupler Efficiency 1 | . . . . . . . . . . . . . . . . . . . . . . 1 . . . . . . Hotswap 1 | . . . . . . . . . . 1 . . . . . . . . . . . . . . . . . . Threat Obfuscator 1 | . . . . . . . . . . . . 1 . . . . . . . . . . . . . . . . Autoassimilate 1 | . . . . . . . . . . . . . . 1 . . . . . . . . . . . . . . Robots Hacked 180 | . . . . . . . . . . . . 23 13 10 22 6 25 8 . 3 8 23 2 14 3 16 4 . Non-combat 43 | . . . . . . . . . . . . . 2 . 11 . 10 3 . 3 7 . 2 . . 4 1 . Combat 137 | . . . . . . . . . . . . 23 11 10 11 6 15 5 . . 1 23 . 14 3 12 3 . Autoassimilated 20 | . . . . . . . . . . . . . . . 4 . 4 . . . 1 1 . 4 3 3 . . Robot Hacks Applied 201 | . . . . . . . . . . . . 23 14 10 21 7 31 9 . 3 7 23 4 11 . 34 4 . parse_system 11 | . . . . . . . . . . . . . 1 1 2 1 2 . . . . . . 2 . 2 . . no_distress 7 | . . . . . . . . . . . . . . . 5 . . . . . . . 1 . . 1 . . find_chute 1 | . . . . . . . . . . . . . . . 1 . . . . . . . . . . . . . hold_bot 1 | . . . . . . . . . . . . . . . 1 . . . . . . . . . . . . . ignore_repairs 4 | . . . . . . . . . . . . . . . 3 . 1 . . . . . . . . . . . map_walls 1 | . . . . . . . . . . . . . . . . . . 1 . . . . . . . . . . drop_inventory 6 | . . . . . . . . . . . . . 1 . . . 3 . . . 1 . . . . 1 . . ignore_parts 1 | . . . . . . . . . . . . . . . . . . 1 . . . . . . . . . . find_station 1 | . . . . . . . . . . . . . . . . . 1 . . . . . . . . . . . purge_threat 10 | . . . . . . . . . . . . . . . . . 5 . . . . . 3 . . 2 . . reprogram_traps 2 | . . . . . . . . . . . . . . . . . . . . . . . . . . 2 . . block_reporting 2 | . . . . . . . . . . . . . . . . . 1 . . . . . . . . 1 . . clear_recycling 1 | . . . . . . . . . . . . . . . . . . . . . . . . . . 1 . . map_route 2 | . . . . . . . . . . . . . . . . . 1 . . . . . . . . . 1 . find_scanalyzer 1 | . . . . . . . . . . . . . . . . . . . . . . . . . . 1 . . disable_scanner 3 | . . . . . . . . . . . . . . . . . . . . . . . . . . 3 . . locate_prototypes 1 | . . . . . . . . . . . . . . . . . . . . . . . . . . 1 . . report_prototypes 5 | . . . . . . . . . . . . . . . . . . . . . . . . . . 5 . . report_analyses 8 | . . . . . . . . . . . . . . . . . . . . . . . . . . 8 . . ignore_targets 6 | . . . . . . . . . . . . . . . . 6 . . . . . . . . . . . . link_fov 7 | . . . . . . . . . . . . . . . 1 . 4 2 . . . . . . . . . . broadcast_data 1 | . . . . . . . . . . . . . . . . . . 1 . . . . . . . . . . disrupt_area 3 | . . . . . . . . . . . . . . . . . 1 1 . . . 1 . . . . . . spike_heat 1 | . . . . . . . . . . . . . . . . . 1 . . . . . . . . . . . overload_power 1 | . . . . . . . . . . . . . . . . . 1 . . . . . . . . . . . disable_weapons 1 | . . . . . . . . . . . . 1 . . . . . . . . . . . . . . . . overwrite_iff 15 | . . . . . . . . . . . . 6 2 . . . 1 . . . . . . 2 . 4 . . formatsys_low 14 | . . . . . . . . . . . . . 1 . 1 . 2 . . 3 6 . . . . 1 . . formatsys_high 84 | . . . . . . . . . . . . 16 9 9 7 . 7 3 . . . 22 . 7 . 1 3 . Relay Couplers Released 104 | . . . . . . . . 13 . 15 . 16 5 15 . . 7 . . . . 17 . 15 . . . 1 Machine Destruction 96 | . . . . . . . . 13 . 15 . 16 1 15 . . 3 . . . . 17 . 15 . . . 1 Programmers 8 | . . . . . . . . . . . . . 4 . . . 4 . . . . . . . . . . . Attached 48 | . . . . . . . . . 1 . . 4 5 2 8 . 9 1 . 1 2 4 1 3 . 5 2 . Robots Rewired 14 | . . . . . . . . 3 . . . . . . . . . 4 . . . . . 6 1 . . . Allies Hacked 4 | . . . . . . . . . . . . . . . 1 . . . . . . . . . . 3 . . Hacks Repelled . | . . . . . . . . . . . . . . . . . . . . . . . . . . . . . Allies | -11 -10 -10 -9 -9 -9 -8 -8 -8 -7 -7 -7 -7 -6 -6 -5 -5 -5 -5 -5 -5 -5 -5 -4 -4 -3 -3 -2 -1 -------- Run | Scr Mat Min Mat Min Exi Min Mat Gar Fac Gar Fac Gar Fac Gar Fac Was Fac Ext Cet Arc Hub Gar Fac Gar Res Qua Res Acc Total Allies 193 | . . 2 . . . . 2 3 . . . 22 14 9 12 1 14 25 5 3 9 23 . 19 17 9 4 . Largest Group 29 | . . 2 1 . . . 1 3 3 . . 15 18 10 10 2 6 17 17 16 14 29 29 10 21 20 2 . Highest-Rated Group 1008 | . . 42 31 . . . 15 114 114 . . 325 431 217 217 50 177 605 957 937 799 851 851 291 1008 981 147 . Highest-Rated Ally 156 | . . 31 31 . . . 15 38 38 . . 32 56 41 81 31 49 156 156 156 94 94 94 115 115 90 147 . Total Orders 507 | . . . . . . . 3 . . . . 38 8 10 11 1 12 16 9 18 69 258 . 10 4 5 26 9 STAY 218 | . . . . . . . 2 . . . . 23 3 7 5 . 2 1 . 13 24 129 . 7 . 1 1 . ROAM 3 | . . . . . . . . . . . . . . . . . . . . . 2 . . . . . 1 . FOLLOW 161 | . . . . . . . 1 . . . . 15 2 3 5 . 2 1 . 2 24 101 . 3 2 . . . AID 43 | . . . . . . . . . . . . . 3 . 1 1 4 14 9 3 2 . . . 2 4 . . DROP 9 | . . . . . . . . . . . . . . . . . . . . . 3 6 . . . . . . PICKUP 34 | . . . . . . . . . . . . . . . . . . . . . 12 22 . . . . . . COLLECT 2 | . . . . . . . . . . . . . . . . . . . . . 2 . . . . . . . EXPLORE 25 | . . . . . . . . . . . . . . . . . 2 . . . . . . . . . 15 8 RETURN 12 | . . . . . . . . . . . . . . . . . 2 . . . . . . . . . 9 1 Ally Attacks 1243 | . . 10 . . . . . 7 6 . . 34 136 39 128 5 71 166 94 38 136 26 80 25 62 154 26 . Total Damage 33822 | . . 186 . . . . . 34 202 . . 634 4367 812 2768 64 1640 3310 2161 893 5305 486 2472 458 1009 6070 951 . Kills 227 | . . 2 . . . . . 1 3 . . 6 29 3 26 . 14 24 12 4 40 4 11 5 3 36 4 . Allies Corrupted 7 | . . . . . . . . . . . . . . . 1 1 . 1 . . . . 2 . . 2 . . Allies Melted . | . . . . . . . . . . . . . . . . . . . . . . . . . . . . . Turrets Deployed 1 | . . . . . . . . . . . . . . . . . . . . . . . . . . 1 . . Intel | -11 -10 -10 -9 -9 -9 -8 -8 -8 -7 -7 -7 -7 -6 -6 -5 -5 -5 -5 -5 -5 -5 -5 -4 -4 -3 -3 -2 -1 ------- Run | Scr Mat Min Mat Min Exi Min Mat Gar Fac Gar Fac Gar Fac Gar Fac Was Fac Ext Cet Arc Hub Gar Fac Gar Res Qua Res Acc Robot Analysis Total 8 | . 1 . 2 . . . . . . . . . . . . . . 4 . . 1 . . . . . . . Derelict Logs Recovered . | . . . . . . . . . . . . . . . . . . . . . . . . . . . . . Drone Launches 28 | . . . . . . . . . . . . . . . . . 2 . . . . . . . . . 17 9 Drone Recoveries 22 | . . . . . . . . . . . . . . . . . . . . . . . . . . . 16 6 Exploration | -11 -10 -10 -9 -9 -9 -8 -8 -8 -7 -7 -7 -7 -6 -6 -5 -5 -5 -5 -5 -5 -5 -5 -4 -4 -3 -3 -2 -1 ------------- Run | Scr Mat Min Mat Min Exi Min Mat Gar Fac Gar Fac Gar Fac Gar Fac Was Fac Ext Cet Arc Hub Gar Fac Gar Res Qua Res Acc Turns Passed 106868 | 46 1303 556 927 622 5074 489 598 3902 2186 9075 1587 8344 1229 9822 2691 5408 4115 2557 435 3812 4560 18999 1311 6219 1270 4457 4382 892 Spaces Moved 42953 | 37 732 342 400 324 2201 261 261 1225 756 5100 396 4467 521 4492 1001 908 1422 1003 159 1556 1784 7439 520 2365 495 1392 1089 305 Core 761 | . . . . . . . . . . 26 . 43 . 32 . . . . . 267 . 393 . . . . . . Treads 19379 | . 307 342 400 324 1685 . . 1013 367 . . 1550 . . . . 252 1003 159 1289 796 6296 7 1810 . 748 1020 11 Legs 3129 | 37 228 . . . 516 261 261 212 . . . . . 1614 . . . . . . . . . . . . . . Wheels 19684 | . 197 . . . . . . . 389 5074 396 2874 521 2846 1001 908 1170 . . . 988 750 513 555 495 644 69 294 Hover . | . . . . . . . . . . . . . . . . . . . . . . . . . . . . . Flight . | . . . . . . . . . . . . . . . . . . . . . . . . . . . . . Fastest Speed 50 | 120 90 160 160 180 160 180 180 150 150 50 180 50 170 50 170 175 200 240 240 50 175 50 190 190 230 230 210 210 Average Speed 196 | 120 133 160 171 180 202 180 209 220 201 151 180 167 184 184 189 195 227 240 256 210 213 213 204 208 233 248 251 219 Slowest Speed 550 | 120 160 160 180 180 220 180 210 240 320 180 180 300 190 550 300 210 260 240 260 260 240 240 260 290 250 260 260 265 Overloaded Moves . | . . . . . . . . . . . . . . . . . . . . . . . . . . . . . Propulsion Burnouts . | . . . . . . . . . . . . . . . . . . . . . . . . . . . . . Robots Hopped 2 | . . . . . . . . . . . . . . . . . . . . . . . . . . 2 . . Cave-ins Triggered . | . . . . . . . . . . . . . . . . . . . . . . . . . . . . . Teleports 1 | . . . . . . . . . . . . . . . . . . . . . . . . . . . 1 . Exploration Rate (%) 57 | 4 92 62 41 73 92 50 18 71 19 92 12 83 14 88 29 98 43 85 67 85 77 95 13 79 13 98 44 27 Regions Visited 28 Branch Regions 9 Pre-discovered Areas 4 | . 2 . 1 . 1 . . . . . . . . . . . . . . . . . . . . . . . Known Exits Taken 11 | . . . 1 . . . 1 . 1 . 1 . 1 . . . 1 . . . 1 . 1 . 1 1 1 . Unknown Exits Taken 9 | 1 1 1 . 1 1 1 . . . . . . . . . . . 1 1 1 . . . . . . . . Scrap Searched 4 | . . 2 . 1 . 1 . . . . . . . . . . . . . . . . . . . . . . Spaces Dug 91 | . . . . . . . . 2 . 10 . 2 . . 4 . 6 2 . . 9 14 1 2 2 16 18 3 Terrain Destroyed 506 | . 2 . 22 . 41 . 1 11 . 19 3 2 1 . 25 . 10 2 . . 216 15 29 2 2 45 52 6 Melee 67 | . . . . . . . . . . 4 . 2 . . 4 . 6 2 . . 7 10 . 2 2 12 16 . Projectile 68 | . . . . . 5 . 1 2 . 1 3 . 1 . . . 1 . . . 23 5 7 . . 7 6 6 AOE 371 | . 2 . 22 . 36 . . 9 . 14 . . . . 21 . 3 . . . 186 . 22 . . 26 30 . Terrain Rammed . | . . . . . . . . . . . . . . . . . . . . . . . . . . . . . Walls Destroyed . | . . . . . . . . . . . . . . . . . . . . . . . . . . . . . Machines Disabled . | . . . . . . . . . . . . . . . . . . . . . . . . . . . . . Actions | -11 -10 -10 -9 -9 -9 -8 -8 -8 -7 -7 -7 -7 -6 -6 -5 -5 -5 -5 -5 -5 -5 -5 -4 -4 -3 -3 -2 -1 --------- Run | Scr Mat Min Mat Min Exi Min Mat Gar Fac Gar Fac Gar Fac Gar Fac Was Fac Ext Cet Arc Hub Gar Fac Gar Res Qua Res Acc Total 62890 | 37 918 351 522 350 2613 270 305 2242 1332 6347 1184 5328 723 5917 1570 4397 2146 1126 182 2140 2365 10618 714 3606 607 2174 2340 466 Wait 12302 | . 43 7 21 8 79 2 16 738 370 550 721 217 89 738 212 3329 287 47 8 231 274 2398 43 876 67 373 526 32 Move 42925 | 36 731 341 399 323 2200 260 260 1224 756 5099 396 4466 521 4491 1001 907 1421 1002 158 1555 1783 7438 520 2364 494 1387 1088 304 Hop 2 | . . . . . . . . . . . . . . . . . . . . . . . . . . 2 . . Pick Up 1811 | . 25 1 24 3 107 1 10 44 41 230 2 218 18 217 56 19 87 9 10 122 38 286 38 61 13 44 74 13 Fast Attach 284 | . 3 . 1 1 16 . 1 9 19 36 4 24 7 33 12 9 19 . . 25 6 32 3 10 2 2 8 2 Attach 530 | . 7 . 7 1 23 1 4 14 11 14 2 11 6 8 24 8 56 3 . 12 29 27 24 32 7 59 109 31 Detach 286 | . 1 . 1 . 6 . 2 . . 3 . 1 . 2 4 3 30 . . 8 15 18 16 25 3 49 79 20 Swap 377 | . 7 1 7 2 9 . 6 29 22 3 2 27 21 19 28 6 19 7 3 . 27 5 8 7 1 32 71 8 Drop 1612 | . 18 1 3 5 51 . 1 24 50 244 4 204 7 212 33 25 46 5 1 160 56 289 17 35 12 38 65 6 Fire 1748 | 1 83 . 59 7 117 6 5 86 44 104 44 48 51 112 115 55 98 15 2 17 79 74 38 66 5 113 257 47 Melee 501 | . . . . . . . . 28 2 11 1 25 2 8 53 36 67 11 . 10 58 29 4 15 3 75 62 1 Ram 4 | . . . . . . . . . . . . . . . 1 . . . . . . . 1 . . . . 2 Kick . | . . . . . . . . . . . . . . . . . . . . . . . . . . . . . Crush 5 | . . . . . . . . 1 1 . . . . . . . . . . . . . 2 . . . 1 . Escape Stasis 343 | . . . . . . . . 16 16 53 8 79 . 76 31 . 16 6 . . . 22 . 20 . . . . Rewire 150 | . . . . . . . . 24 . . . 8 1 1 . . . 21 . . . . . 95 . . . . Trap 10 | . . . . . 5 . . 5 . . . . . . . . . . . . . . . . . . . . Miscellaneous . | . . . . . . . . . . . . . . . . . . . . . . . . . . . . . Route ------- -11/Scrapyard -10/Materials (discovered 5 exits: *Mat x3 / [*Min x2]) -10/Mines -9/Materials (discovered 2 exits: *Mat / *Min) -9/Mines (discovered 2 exits: *Mat / *Exi) -9/Exiles -8/Mines -8/Materials (discovered 2 exits: *Fac / Gar) -8/Garrison -7/Factory -7/Garrison (discovered 3 exits: *Fac x3) -7/Factory (discovered 2 exits: *Fac / Gar) -7/Garrison (discovered 3 exits: *Fac x3) -6/Factory -6/Garrison (discovered 3 exits: *Fac x3) -5/Factory (discovered 5 exits: *Upp x2 / Ext x2 / Gar) -5/Waste -5/Factory (discovered 6 exits: *Fac x2 / *Upp x2 / *Ext x2) -5/Extension (discovered 2 exits: *Fac / *Cet) -5/Cetus (discovered 2 exits: *Fac / [*Arc]) -5/Archives (discovered 3 exits: *Fac / *Hub x2) -5/Hub_04(d) (discovered 5 exits: *Fac x4 / Gar) -5/Garrison (discovered 3 exits: *Fac x3) -4/Factory (discovered 3 exits: *Res / [*Upp] / Gar) -4/Garrison (discovered 3 exits: *Res x3) -3/Research (discovered 2 exits: *Qua x2) -3/Quarantine -2/Research (discovered 3 exits: *Acc x3) -1/Access To Epsilon Eridani History --------- Turn | Location | Event 1 | -11/Scrapyard | Discovered new exit (range 1) 47 | -11/Scrapyard | Entered Materials 47 | -10/Materials | Discovered new exit (range 14) 234 | -10/Materials | Discovered new exit (range 10) 309 | -10/Materials | Build established: Mutant 444 | -10/Materials | Discovered new exit (range 10) 587 | -10/Materials | Discovered new exit (range 11) 770 | -10/Materials | Lost 4 parts (1n3w) 849 | -10/Materials | Discovered new exit (range 16) 895 | -10/Materials | Repaired Assault Rifle 1350 | -10/Materials | Entered Mines 1350 | -10/Mines | Discovered new exit (range 11) 1360 | -10/Mines | Met a Derelict bent on vengeance 1906 | -10/Mines | Entered Materials 1906 | -9/Materials | Accompanied by 1 ally 1906 | -9/Materials | Evolved 2 slots: Utility x2 1911 | -9/Materials | Led the pair of lost Derelicts to an unsafe place 1967 | -9/Materials | Identified exit to Mines 2374 | -9/Materials | Discovered new exit (range 13) 2549 | -9/Materials | Build established: Hauler-Mutant 2833 | -9/Materials | Entered Mines 3187 | -9/Mines | Discovered new exit (range 12) 3446 | -9/Mines | Deemed a non-threat by the Exiles lab entrance 3448 | -9/Mines | Discovered new exit (range 5) 3455 | -9/Mines | Entered Exiles 3497 | -9/Exiles | Met 8R-AWN 3526 | -9/Exiles | Met EX-HEX 3751 | -9/Exiles | Met EX-DEC 3793 | -9/Exiles | Learned location of Zion (-6) 4022 | -9/Exiles | Met EX-BIN 4053 | -9/Exiles | Aligned with FarCom system 4055 | -9/Exiles | Given EX-Vault access code 4108 | -9/Exiles | Opened EX-Vault 4127 | -9/Exiles | Found PSU Rigger 4130 | -9/Exiles | Found Latent Energy Streamer 4140 | -9/Exiles | Found Chronowheel 4187 | -9/Exiles | Warned to stay clear of 0b10 Research branches 4323 | -9/Exiles | Discovered new exit (range 14) 4463 | -9/Exiles | Visited The Gauntlet 5779 | -9/Exiles | Attacked by the Exiles 5844 | -9/Exiles | Core integrity fell below 50% 5932 | -9/Exiles | Lost 6 parts (1p4n1u) 5968 | -9/Exiles | Destroyed 8R-AWN 6013 | -9/Exiles | Found Prototype Protection 6013 | -9/Exiles | Identified 8R-AWN's Armor/EX 6026 | -9/Exiles | Found Prototype Device 6026 | -9/Exiles | Identified AS-neutralizer No. 17b 6058 | -9/Exiles | Found Prototype Ballistic Gun 6065 | -9/Exiles | Found Prototype Ballistic Gun 6072 | -9/Exiles | Found Prototype Processor 6470 | -9/Exiles | Identified 8R-AWN's Boregun (x2) 6860 | -9/Exiles | System corruption reached 10% 6864 | -9/Exiles | Core integrity fell below 20% 6866 | -9/Exiles | Destroyed EX-DEC 6894 | -9/Exiles | Found Prototype Energy Gun 6894 | -9/Exiles | Identified AWS/EX-DEC 7000 | -9/Exiles | Destroyed EX-BIN 7004 | -9/Exiles | Destroyed EX-HEX 7010 | -9/Exiles | Found Prototype Device 7010 | -9/Exiles | Identified System Purifier 8109 | -9/Exiles | Found Deploy-a-Sentry 8529 | -9/Exiles | Stole four prototypes: PSU Rigger, Chronowheel, Latent Energy Streamer, Deploy-a-Sentry 8529 | -9/Exiles | Entered Mines 9011 | -8/Mines | Discovered new exit (range 5) 9018 | -8/Mines | Entered Materials 9018 | -8/Materials | Evolved 2 slots: Utility x2 9167 | -8/Materials | Identified exit to Garrison 9344 | -8/Materials | Discovered new exit (range 12) 9616 | -8/Materials | Entered Garrison 9616 | -8/Garrison | Accompanied by 1 ally 9710 | -8/Garrison | Triggered checkpoint 9710 | -8/Garrison | Triggered checkpoint 9754 | -8/Garrison | Destroyed 8 combat bots 9851 | -8/Garrison | Discovered new exit (range 15) 9893 | -8/Garrison | Installed Relay Interface Framework 10009 | -8/Garrison | Spotted B-75 Beast 10100 | -8/Garrison | Destroyed B-75 Beast 10120 | -8/Garrison | Lost 5 parts (1p2u2w) 10127 | -8/Garrison | Found Unknown Device 10127 | -8/Garrison | Identified Launcher Loader 10446 | -8/Garrison | Triggered checkpoint 10730 | -8/Garrison | Garrison Relay disabled 10833 | -8/Garrison | Triggered checkpoint 11885 | -8/Garrison | Triggered checkpoint 11959 | -8/Garrison | Garrison Relay disabled 12116 | -8/Garrison | Spotted B-75 Beast 12146 | -8/Garrison | Core integrity fell below 50% 12628 | -8/Garrison | Triggered checkpoint 12753 | -8/Garrison | Garrison Relay disabled 13518 | -8/Garrison | Entered Factory 13518 | -7/Factory | Accompanied by 3 allies 13518 | -7/Factory | Evolved 2 slots: Utility x2 13931 | -7/Factory | Identified Exp. Targeting Computer 14943 | -7/Factory | Fabricated Hcp. Storage Unit (x1) 15443 | -7/Factory | Repaired Hcp. Storage Unit 15704 | -7/Factory | Identified exit to Garrison 15704 | -7/Factory | Entered Garrison 16098 | -7/Garrison | Build established: Scavenger-Mutant 16348 | -7/Garrison | Triggered checkpoint 16366 | -7/Garrison | Triggered checkpoint 16445 | -7/Garrison | Lost 5 parts (2n2u1w) 16493 | -7/Garrison | Garrison Relay disabled 17061 | -7/Garrison | Discovered new exit (range 9) 17285 | -7/Garrison | Discovered new exit (range 8) 17301 | -7/Garrison | Expanded RIF knowledge: Hotswap 17483 | -7/Garrison | Triggered checkpoint 17576 | -7/Garrison | Discovered new exit (range 9) 17668 | -7/Garrison | Triggered checkpoint 18151 | -7/Garrison | Triggered checkpoint 18184 | -7/Garrison | Build established: Mutant 18258 | -7/Garrison | Garrison Relay disabled 18372 | -7/Garrison | Triggered checkpoint 18503 | -7/Garrison | Garrison Relay disabled 18620 | -7/Garrison | Triggered checkpoint 19125 | -7/Garrison | Build established: Hauler-Mutant 19620 | -7/Garrison | Garrison Relay disabled 24779 | -7/Garrison | Entered Factory 25021 | -7/Factory | Discovered new exit (range 16) 25132 | -7/Factory | Build established: Bothacker-Mutant 25663 | -7/Factory | Identified exit to Garrison 26366 | -7/Factory | Entered Garrison 26460 | -7/Garrison | Triggered checkpoint 26859 | -7/Garrison | Triggered checkpoint 26958 | -7/Garrison | Discovered new exit (range 14) 27000 | -7/Garrison | Expanded RIF knowledge: Threat Obfuscation 27312 | -7/Garrison | Triggered checkpoint 27324 | -7/Garrison | Core integrity fell below 50% 27908 | -7/Garrison | Discovered new exit (range 15) 28348 | -7/Garrison | Triggered checkpoint 28589 | -7/Garrison | Discovered new exit (range 13) 28658 | -7/Garrison | Triggered checkpoint 29070 | -7/Garrison | Garrison Relay disabled 29186 | -7/Garrison | Triggered checkpoint 29281 | -7/Garrison | Garrison Relay disabled 29505 | -7/Garrison | Triggered checkpoint 29615 | -7/Garrison | Garrison Relay disabled 29810 | -7/Garrison | Garrison Relay disabled 30686 | -7/Garrison | Triggered checkpoint 31818 | -7/Garrison | Build established: Commander-Mutant 33298 | -7/Garrison | Found Launcher Loader 33300 | -7/Garrison | Found Launcher Loader 33302 | -7/Garrison | Found Launcher Loader 33305 | -7/Garrison | Found Launcher Loader 34710 | -7/Garrison | Entered Factory 34710 | -6/Factory | Accompanied by 15 allies 34710 | -6/Factory | Evolved 2 slots: Utility x2 34831 | -6/Factory | Build established: Bothacker-Mutant 34930 | -6/Factory | Repaired Hcp. Storage Unit 34957 | -6/Factory | Repaired Lrg. Storage Unit 34985 | -6/Factory | Repaired Lrg. Storage Unit 35065 | -6/Factory | Identified exit to Garrison 35290 | -6/Factory | Spotted B-75 Beast 35410 | -6/Factory | First assault squad dispatched 35932 | -6/Factory | Identified exit to Garrison 35939 | -6/Factory | Entered Garrison 35939 | -6/Garrison | Accompanied by 4 allies 36164 | -6/Garrison | Triggered checkpoint 36190 | -6/Garrison | Triggered checkpoint 36261 | -6/Garrison | Lost 3 parts (1p1n1u) 36414 | -6/Garrison | Triggered checkpoint 37162 | -6/Garrison | Triggered checkpoint 37261 | -6/Garrison | Discovered new exit (range 10) 37351 | -6/Garrison | Garrison Relay disabled 37550 | -6/Garrison | Triggered checkpoint 37598 | -6/Garrison | Lost 3 parts (1p1u1w) 37867 | -6/Garrison | Discovered new exit (range 14) 38200 | -6/Garrison | Triggered checkpoint 38328 | -6/Garrison | Discovered new exit (range 14) 38374 | -6/Garrison | Expanded RIF knowledge: Autoassimilate 38642 | -6/Garrison | Triggered checkpoint 38677 | -6/Garrison | Build established: Botlord-Mutant 38690 | -6/Garrison | Garrison Relay disabled 38905 | -6/Garrison | Triggered checkpoint 38963 | -6/Garrison | Garrison Relay disabled 39506 | -6/Garrison | Triggered checkpoint 39958 | -6/Garrison | Garrison Relay disabled 43279 | -6/Garrison | Build established: Hauler-Mutant 45542 | -6/Garrison | Build established: Botlord-Mutant 45761 | -6/Garrison | Entered Factory 45761 | -5/Factory | Accompanied by 10 allies 45761 | -5/Factory | Evolved 2 slots: Utility x2 45900 | -5/Factory | Discovered new exit (range 9) 45966 | -5/Factory | Fabricated Hcp. Storage Unit (x1) 46264 | -5/Factory | Garrison activated, responded to threat 46267 | -5/Factory | P-70 Sage assimilated allied Sentinel 6a 46302 | -5/Factory | Identified exit to Garrison 46456 | -5/Factory | Found Prototype Launcher 46456 | -5/Factory | Identified Tesla Bomb Launcher 46460 | -5/Factory | Found Tesla Bomb Launcher 46463 | -5/Factory | Found Tesla Bomb Launcher 46466 | -5/Factory | Found Tesla Bomb Launcher 46473 | -5/Factory | Found Tesla Bomb Launcher 46480 | -5/Factory | Found Tesla Bomb Launcher 46597 | -5/Factory | System corruption reached 10% 46641 | -5/Factory | Lost 4 parts (1p1n1u1w) 47109 | -5/Factory | Lost 3 parts (1p1u1w) 47329 | -5/Factory | Identified exit to Upper Caves 47329 | -5/Factory | Identified exit to Extension 48005 | -5/Factory | Spotted B-75 Beast 48030 | -5/Factory | Assimilated Beast 6a with formatsys_high 48250 | -5/Factory | Repaired Hcp. Storage Unit 48452 | -5/Factory | Sucked down chute 48452 | -5/Factory | Entered Waste 48453 | -5/Waste | Met a frightened Derelict 48460 | -5/Waste | 1 allies followed down the chute 48465 | -5/Waste | Spotted C-40 Crusher 48466 | -5/Waste | Spotted C-40 Crusher 48466 | -5/Waste | Spotted C-40 Crusher 48466 | -5/Waste | Spotted C-40 Crusher 48467 | -5/Waste | EMP discharged 48472 | -5/Waste | Spotted C-40 Crusher 48525 | -5/Waste | Spotted C-40 Crusher 48567 | -5/Waste | EMP discharged 48667 | -5/Waste | EMP discharged 48667 | -5/Waste | System corruption reached 30% 48767 | -5/Waste | EMP discharged 48847 | -5/Waste | Discovered new exit (range 16) 48867 | -5/Waste | EMP discharged 48897 | -5/Waste | Destroyed C-40 Crusher 48905 | -5/Waste | Found Damper Plating 48967 | -5/Waste | EMP discharged 49067 | -5/Waste | EMP discharged 49167 | -5/Waste | EMP discharged 49267 | -5/Waste | EMP discharged 49339 | -5/Waste | Destroyed C-40 Crusher 49350 | -5/Waste | Found Damper Plating 49367 | -5/Waste | EMP discharged 49467 | -5/Waste | EMP discharged 49567 | -5/Waste | EMP discharged 49667 | -5/Waste | EMP discharged 49767 | -5/Waste | EMP discharged 49867 | -5/Waste | EMP discharged 49957 | -5/Waste | Destroyed C-40 Crusher 49966 | -5/Waste | Found Damper Plating 49967 | -5/Waste | EMP discharged 50067 | -5/Waste | EMP discharged 50167 | -5/Waste | EMP discharged 50267 | -5/Waste | EMP discharged 50367 | -5/Waste | EMP discharged 50467 | -5/Waste | EMP discharged 50567 | -5/Waste | EMP discharged 50667 | -5/Waste | EMP discharged 50767 | -5/Waste | EMP discharged 50867 | -5/Waste | EMP discharged 50967 | -5/Waste | EMP discharged 51067 | -5/Waste | EMP discharged 51167 | -5/Waste | EMP discharged 51267 | -5/Waste | EMP discharged 51367 | -5/Waste | EMP discharged 51467 | -5/Waste | EMP discharged 51567 | -5/Waste | EMP discharged 51667 | -5/Waste | EMP discharged 51767 | -5/Waste | EMP discharged 51867 | -5/Waste | EMP discharged 51967 | -5/Waste | EMP discharged 52067 | -5/Waste | EMP discharged 52167 | -5/Waste | EMP discharged 52267 | -5/Waste | EMP discharged 52367 | -5/Waste | EMP discharged 52467 | -5/Waste | EMP discharged 52567 | -5/Waste | EMP discharged 52667 | -5/Waste | EMP discharged 52767 | -5/Waste | EMP discharged 52867 | -5/Waste | EMP discharged 52967 | -5/Waste | EMP discharged 53067 | -5/Waste | EMP discharged 53167 | -5/Waste | EMP discharged 53267 | -5/Waste | EMP discharged 53367 | -5/Waste | EMP discharged 53463 | -5/Waste | Destroyed C-40 Crusher 53467 | -5/Waste | EMP discharged 53471 | -5/Waste | Found Damper Plating 53567 | -5/Waste | EMP discharged 53653 | -5/Waste | Destroyed C-40 Crusher 53660 | -5/Waste | Found Damper Plating 53667 | -5/Waste | EMP discharged 53737 | -5/Waste | Destroyed C-40 Crusher 53767 | -5/Waste | EMP discharged 53860 | -5/Waste | Entered Factory 54045 | -5/Factory | Discovered new exit (range 16) 54269 | -5/Factory | Garrison activated, responded to threat 54476 | -5/Factory | Core integrity fell below 50% 54809 | -5/Factory | Repaired Hcp. Storage Unit 54856 | -5/Factory | Repaired Arm. Wheel 55206 | -5/Factory | Fabricated Hcp. Storage Unit (x1) 55231 | -5/Factory | Fabricated Hcp. Storage Unit (x1) 55461 | -5/Factory | Spotted B-75 Beast 56145 | -5/Factory | Discovered new exit (range 4) 56306 | -5/Factory | Fabricated Hcp. Storage Unit (x1) 56631 | -5/Factory | Repaired Arm. Wheel 57434 | -5/Factory | Discovered exit to Upper Caves (range 27) 57460 | -5/Factory | First assault squad dispatched 57975 | -5/Factory | Entered Extension 57975 | -5/Extension | Accompanied by 3 allies 58100 | -5/Extension | Rescued a captive Derelict 58101 | -5/Extension | Rescued a captive Derelict 58188 | -5/Extension | Rescued a captive Derelict 58190 | -5/Extension | Rescued a captive Derelict 58254 | -5/Extension | Rescued a captive Derelict 58307 | -5/Extension | Rescued a captive Derelict 58309 | -5/Extension | Rescued a captive Derelict 58535 | -5/Extension | Found Hvy. Reactive Plating 58585 | -5/Extension | Rescued a captive Derelict 58589 | -5/Extension | Rescued a captive Derelict 58824 | -5/Extension | Rescued A7 59100 | -5/Extension | Rescued a captive Derelict 59246 | -5/Extension | Rescued a captive Derelict 59253 | -5/Extension | Rescued a captive Derelict 59368 | -5/Extension | Rescued a captive Derelict 59801 | -5/Extension | Rescued a captive Derelict 59802 | -5/Extension | Rescued a captive Derelict 60070 | -5/Extension | Rescued a captive Derelict 60071 | -5/Extension | Rescued a captive Derelict 60477 | -5/Extension | Discovered new exit (range 15) 60480 | -5/Extension | Discovered new exit (range 15) 60532 | -5/Extension | Entered Cetus 60532 | -5/Cetus | Accompanied by 14 allies (A7) 60537 | -5/Cetus | Acquired a Cetus Manufacturing Module code from A7 60564 | -5/Cetus | Spotted Cetus Guard 60564 | -5/Cetus | Spotted Cetus Guard 60565 | -5/Cetus | Spotted Cetus Guard 60567 | -5/Cetus | Spotted Cetus Guard 60568 | -5/Cetus | Destroyed Cetus Guard 60579 | -5/Cetus | Allies destroyed Cetus Guard 60582 | -5/Cetus | Allies destroyed Cetus Guard 60583 | -5/Cetus | Allies destroyed Cetus Guard 60707 | -5/Cetus | Started Cetus Manufacturing Module 60723 | -5/Cetus | Escorted A7 to Cetus Mainframe 60732 | -5/Cetus | Manufactured an Enhanced Grunt 60757 | -5/Cetus | Manufactured an Enhanced Grunt 60769 | -5/Cetus | Discovered new exit (range 16) 60782 | -5/Cetus | Manufactured an Enhanced Grunt 60807 | -5/Cetus | Manufactured an Enhanced Grunt 60824 | -5/Cetus | Spotted Cetus Guard 60824 | -5/Cetus | Spotted Cetus Guard 60826 | -5/Cetus | Spotted Cetus Guard 60826 | -5/Cetus | Spotted Cetus Guard 60832 | -5/Cetus | Manufactured an Enhanced Grunt 60836 | -5/Cetus | Allies destroyed Cetus Guard 60840 | -5/Cetus | Allies destroyed Cetus Guard 60844 | -5/Cetus | Allies destroyed Cetus Guard 60844 | -5/Cetus | Allies destroyed Cetus Guard 60866 | -5/Cetus | Discovered new exit (range 15) 60879 | -5/Cetus | Met Revision 17 60967 | -5/Cetus | Entered Archives 60967 | -5/Archives | Accompanied by 16 allies (A7) 60972 | -5/Archives | Received a hacking code to weaken MAIN.C 61066 | -5/Archives | Discovered new exit (range 16) 61105 | -5/Archives | Discovered new exit (range 15) 61176 | -5/Archives | Discovered new exit (range 16) 62365 | -5/Archives | Build established: Hauler-Mutant 63109 | -5/Archives | Build established: Commander-Mutant 63531 | -5/Archives | Build established: Hauler-Mutant 64779 | -5/Archives | Entered Hub_04(d) 64779 | -5/Hub_04(d) | Accompanied by 14 allies 64798 | -5/Hub_04(d) | Build established: Botlord-Mutant 64857 | -5/Hub_04(d) | Discovered new exit (range 10) 64866 | -5/Hub_04(d) | Identified exit to Factory 65039 | -5/Hub_04(d) | Spotted B-75 Beast 65870 | -5/Hub_04(d) | Identified exit to Garrison 66625 | -5/Hub_04(d) | Network Hub disabled 66766 | -5/Hub_04(d) | Network Hub disabled 66816 | -5/Hub_04(d) | Spotted Lightning 66816 | -5/Hub_04(d) | Spotted Lightning 66827 | -5/Hub_04(d) | Spotted Lightning 66876 | -5/Hub_04(d) | Destroyed Lightning 66884 | -5/Hub_04(d) | Destroyed Lightning 66905 | -5/Hub_04(d) | Destroyed Lightning 67376 | -5/Hub_04(d) | Found Prototype Device 67389 | -5/Hub_04(d) | Found Prototype Energy Cannon 67400 | -5/Hub_04(d) | Found Prototype Device 67405 | -5/Hub_04(d) | Found Exp. Targeting Computer 67449 | -5/Hub_04(d) | Found Prototype Device 67454 | -5/Hub_04(d) | Found Prototype Energy Cannon 67457 | -5/Hub_04(d) | Found Exp. Targeting Computer 68174 | -5/Hub_04(d) | Identified EM Dispersion Field 68175 | -5/Hub_04(d) | Identified Exp. Phase Shifter (x2) 68544 | -5/Hub_04(d) | Build established: Commander-Mutant 68554 | -5/Hub_04(d) | Spotted Lightning 68554 | -5/Hub_04(d) | Spotted Lightning 68554 | -5/Hub_04(d) | Spotted Lightning 68661 | -5/Hub_04(d) | Destroyed Lightning 68686 | -5/Hub_04(d) | Destroyed Lightning 68711 | -5/Hub_04(d) | Destroyed Lightning 68715 | -5/Hub_04(d) | Found Prototype Energy Cannon 68718 | -5/Hub_04(d) | Found Prototype Energy Cannon 68721 | -5/Hub_04(d) | Found EM Dispersion Field 68746 | -5/Hub_04(d) | Found Exp. Phase Shifter 68755 | -5/Hub_04(d) | Found Prototype Energy Cannon 68979 | -5/Hub_04(d) | First assault squad dispatched 68994 | -5/Hub_04(d) | Identified EMDS (x5) 69088 | -5/Hub_04(d) | Found Prototype Device 69332 | -5/Hub_04(d) | Build established: Hauler-Mutant 69339 | -5/Hub_04(d) | Entered Garrison 69339 | -5/Garrison | Accompanied by 9 allies 69586 | -5/Garrison | Triggered checkpoint 69631 | -5/Garrison | Garrison Relay disabled 70193 | -5/Garrison | Build established: Commander-Mutant 70224 | -5/Garrison | Triggered checkpoint 70968 | -5/Garrison | Triggered checkpoint 71110 | -5/Garrison | Garrison Relay disabled 71247 | -5/Garrison | Discovered exit to Factory (range 14) 71293 | -5/Garrison | Expanded RIF knowledge: Coupler Efficiency 71820 | -5/Garrison | Triggered checkpoint 71927 | -5/Garrison | Discovered exit to Factory (range 15) 71962 | -5/Garrison | Triggered checkpoint 72346 | -5/Garrison | Garrison Relay disabled 72708 | -5/Garrison | Triggered checkpoint 72996 | -5/Garrison | Discovered exit to Factory (range 15) 73064 | -5/Garrison | Triggered checkpoint 73105 | -5/Garrison | Garrison Relay disabled 73654 | -5/Garrison | Triggered checkpoint 80838 | -5/Garrison | Identified Exp. Thermal Shield 88338 | -5/Garrison | Entered Factory 88338 | -4/Factory | Accompanied by 29 allies 88338 | -4/Factory | Evolved 2 slots: Utility x2 88723 | -4/Factory | Discovered new exit (range 11) 88834 | -4/Factory | Repaired Hcp. Storage Unit 89048 | -4/Factory | Build established: Hauler-Mutant 89073 | -4/Factory | Discovered new exit (range 4) 89360 | -4/Factory | Build established: Botlord-Mutant 89437 | -4/Factory | Fabricated Hcp. Storage Unit? 89541 | -4/Factory | Fabricated Hcp. Storage Unit (x1) 89649 | -4/Factory | Identified exit to Garrison 89649 | -4/Factory | Entered Garrison 89828 | -4/Garrison | Triggered checkpoint 89931 | -4/Garrison | Garrison Relay disabled 90142 | -4/Garrison | Triggered checkpoint 90293 | -4/Garrison | Spotted B-86 Titan 90298 | -4/Garrison | Triggered checkpoint 90303 | -4/Garrison | Rewired B-86 Titan 90613 | -4/Garrison | Discovered new exit (range 15) 90848 | -4/Garrison | Discovered new exit (range 5) 90900 | -4/Garrison | Triggered checkpoint 91072 | -4/Garrison | Garrison Relay disabled 91551 | -4/Garrison | Triggered checkpoint 91910 | -4/Garrison | Garrison Relay disabled 91992 | -4/Garrison | Triggered checkpoint 92143 | -4/Garrison | Discovered new exit (range 9) 92192 | -4/Garrison | Triggered checkpoint 92964 | -4/Garrison | Triggered checkpoint 93218 | -4/Garrison | Triggered checkpoint 95490 | -4/Garrison | Garrison Relay disabled 95868 | -4/Garrison | Entered Research 95868 | -3/Research | Accompanied by 10 allies 95868 | -3/Research | Evolved 2 slots: Utility x2 95896 | -3/Research | Identified exit to Quarantine 96068 | -3/Research | Revision forces began assault on 0b10 96173 | -3/Research | Met up with Revision 17++ 96234 | -3/Research | Found Prototype Device 96263 | -3/Research | Spotted B-86 Titan 96278 | -3/Research | Rewired B-86 Titan 96380 | -3/Research | Fabricated Exp. Sensor Array (x1) 96473 | -3/Research | Fabricated M-36 Artificer (x1) 96568 | -3/Research | Research terminal network offline 97104 | -3/Research | Identified Exp. Focal Shield 97138 | -3/Research | Entered Quarantine 97138 | -3/Quarantine | Accompanied by 20 allies 97206 | -3/Quarantine | Garrison activated, responded to threat 97496 | -3/Quarantine | Found Alien Artifact 97527 | -3/Quarantine | Found Alien Artifact 97699 | -3/Quarantine | Repaired Imp. KE Penetrator? 97818 | -3/Quarantine | P-80 Master assimilated allied Warden 8b 98024 | -3/Quarantine | Found Fusion Bomb Launcher 98084 | -3/Quarantine | Repaired EM Dispersion Field 98197 | -3/Quarantine | Identified Core Reset Matrix 98197 | -3/Quarantine | Identified Stasis Generator 99286 | -3/Quarantine | DAS Turret deployed 99351 | -3/Quarantine | Found Alien Artifact 99448 | -3/Quarantine | Discovered new exit (range 16) 99554 | -3/Quarantine | Found Alien Artifact 99640 | -3/Quarantine | Identified Phase Armor 99963 | -3/Quarantine | Identified Phase Redirector 99987 | -3/Quarantine | Found Transdimensional Reconstructor 99996 | -3/Quarantine | Found Transdimensional Reconstructor 99999 | -3/Quarantine | Found Hpw. Transdimensional Reconstructor 100003 | -3/Quarantine | Found Transdimensional Reconstructor 100020 | -3/Quarantine | Found Dimensional Node Initializer 100025 | -3/Quarantine | Found Dimensional Node Initializer 100028 | -3/Quarantine | Found Dimensional Node Initializer 100072 | -3/Quarantine | Found Subatomic Replicator 100630 | -3/Quarantine | Met incapacitated Sigix Warrior 100630 | -3/Quarantine | Lockdown squad dispatched 100783 | -3/Quarantine | Spotted Lightning 100783 | -3/Quarantine | Spotted Lightning 100786 | -3/Quarantine | Spotted Lightning 100801 | -3/Quarantine | Destroyed Lightning 100873 | -3/Quarantine | Destroyed Lightning 100898 | -3/Quarantine | Destroyed Lightning 100926 | -3/Quarantine | Found Exp. Targeting Computer 100929 | -3/Quarantine | Found Exp. Phase Shifter 100936 | -3/Quarantine | Found EM Dispersion Field 100948 | -3/Quarantine | Found Exp. Targeting Computer 101593 | -3/Quarantine | Identified exit to Research 101595 | -3/Quarantine | Entered Research 101595 | -2/Research | Evolved 2 slots: Utility x2 101870 | -2/Research | Found Exp. Focal Shield 102493 | -2/Research | Spotted B-90 Cyclops 102497 | -2/Research | Assimilated Cyclops 9a with formatsys_high 103027 | -2/Research | Spotted B-90 Cyclops 103217 | -2/Research | Destroyed B-90 Cyclops 103582 | -2/Research | Fabricated Exp. Weapon Shielding (x1) 103659 | -2/Research | Fabricated Exp. Weapon Shielding? 104029 | -2/Research | Discovered new exit (range 10) 104086 | -2/Research | Identified exit to Access 104439 | -2/Research | Warped through subspace 104689 | -2/Research | Lost 3 parts (2u1w) 104711 | -2/Research | Destroyed 12 combat bots 104771 | -2/Research | Repaired Hcp. Storage Unit 104785 | -2/Research | Discovered exit to Access (range 23) 105049 | -2/Research | Destroyed 8 combat bots 105217 | -2/Research | Core integrity fell below 50% 105243 | -2/Research | Garrison activated, responded to threat 105300 | -2/Research | Destroyed 10 combat bots 105509 | -2/Research | Build established: Hauler-Mutant 105832 | -2/Research | Discovered exit to Access (range 36) 105845 | -2/Research | First assault squad dispatched 105949 | -2/Research | Spotted B-90 Cyclops 105977 | -2/Research | Entered Access 105977 | -1/Access | Evolved 2 slots: Utility x2 106119 | -1/Access | Destroyed 10 combat bots 106126 | -1/Access | Lost 5 parts (1p4u) 106424 | -1/Access | System corruption reached 10% 106459 | -1/Access | Spotted B-99 Colossus 106477 | -1/Access | Spotted B-99 Colossus 106858 | -1/Access | Discovered new exit (range 3) 106863 | -1/Access | Identified exit to Surface 106869 | *** | Escaped! Last Messages --------------- 06653_ Acquired Com. HERF Cannon. 06663_ System corrupted: Energy discharge (-246). 06687_ System corrupted: Component data lost. 06712_ System corrupted: Heat flow error (+238). 06728_ System corrupted: Heat flow error (+218). 06739_ System Purifier purges 1% of system corruption (10%). 06773_ System Purifier purges 1% of system corruption (9%). 06788_ &EXHRKXEPO79ANXOJFI5JPWTOX#: F PIW0ZMDH 06797_ System corrupted: Adv. Variable Charge Gun targeting data glitched. 06804_ System Purifier purges 1% of system corruption (8%). 06813_ System Purifier purges 1% of system corruption (7%). 06826_ 0SCJ0L8&MUC80CRNPIFVJUZMGKL,0Y,L 06859_ System corrupted: Force Lance targeting data glitched. 06859_ Main Access Shell breached. 06859_ EXIT=FOUND 06864_ EXIT=IDENTIFIED: SURFACE 06864_ U-05 Engineer builds a Wall. 06867_ System corrupted: Matter fused (-9). [Achievement: Inspector Gadget] [Achievement: Victory By Combat] Map ----- +----------------------------------------------------+ | # """"""" "" "" #???????###### | | # """"" #???????# | | # """"""" +???????# | | # """"""" #???????# | | #########!] """ """ #???????# = | | ????????#! #???????# | | ????????# #???????# | | ????????# #???????# | | ????????# #???????# ! | | ????????# ################ ######### | | ######### ################ ###+## | | | | | | ###############+##### ""####### ###### | | ## #?# ""#?????# # | | ## #?# ""#?????# # | | ## #?# T#?????# # | | ## #?# ""#?????# # | | #?# ""#?????# # | | ######## ### ""#?????# ###### | | ???????#############""""""""""""?????# #????? | | ?????????????????## # #?????# #????? | | ??????????????????## #?????# #????? | | ???????????????????## """""" #?????# #????? | | ????????????????????# " "????????# #????? | | ????????????????????# @" "????????# #????? | | ????????????????????# " "" "????????# #????? | | ????????????????????# " "????????# #????? | | ????????????????????# """"""?????????###+###????? | | ????????????????????# ?????????????????????????? | | ????????????????????#"""?????????????????????????? | | ?????????????????????????????????????????????????? | | ?????????????????????????????????????????????????? | | ?????????????????????????????????????????????????? | | ?????????????????????????????????????????????????? | | ?????????????????????????????????????????????????? | | ?????????????????????????????????????????????????? | | ?????????????????????????????????????????????????? | | ?????????????????????????????????????????????????? | | ?????????????????????????????????????????????????? | | ?????????????????????????????????????????????????? | | ?????????????????????????????????????????????????? | | ?????????????????????????????????????????????????? | | ?????????????????????????????????????????????????? | | ?????????????????????????????????????????????????? | | ?????????????????????????????????????????????????? | | ?????????????????????????????????????????????????? | | ?????????????????????????????????????????????????? | | ?????????????????????????????????????????????????? | | ?????????????????????????????????????????????????? | +----------------------------------------------------+ Best States ------------- Heat Dissipation 103 Energy Generation 25 Energy Capacity 850 Matter Stores 300 Matter Capacity 300 Sight Range 20 Robot Scan Range 30 Terrain Scan Density 10 Armor Coverage 4050 Resistance: KI 40 Resistance: TH 30 Resistance: EM 90 Core Shielding 20 Utility Shielding 33 Weapon Shielding 90 Point Defense Rating 80 Phase Shifting 20 Evasion (%) 60 Targeting Accuracy 12 Target Analysis 6 Recoil Reduction 2 Overload Amplification 75 Offensive Hacking 24 Defensive Hacking 24 Relay Coupler Types 87 Relay Coupler Value 4 Item Schematics ----------------- Hcp. Storage Unit | -10/Materials | Hacked Cooling System | -9/Materials | Scanalyzed Remote Datajack | -5/Factory | Scanalyzed Railgun | -5/Extension | Hacked Exp. Sensor Array | -3/Research | Hacked Adv. Remote Datajack | -3/Research | Scanalyzed Exp. Weapon Shielding | -3/Quarantine | Hacked Robot Schematics ------------------ M-36 Artificer | -3/Research | Hacked Fabricated ------------ Hcp. Storage Unit | x1 | -7/Factory Hcp. Storage Unit | x1 | -5/Factory Hcp. Storage Unit | x1 | -5/Factory Hcp. Storage Unit | x1 | -5/Factory Hcp. Storage Unit | x1 | -5/Factory Hcp. Storage Unit | x1 | -4/Factory Hcp. Storage Unit | x1 | -4/Factory Exp. Sensor Array | x1 | -3/Research M-36 Artificer | x1 | -3/Research Exp. Weapon Shielding | x1 | -2/Research Exp. Weapon Shielding | x1 | -2/Research Alien Tech Used ----------------- Phase Armor High-powered Transdimensional Reconstructor Phase Redirector Achievements -------------- Inspector Gadget Short-term Sacrifices Victory By Combat Challenges ------------ None Game ------ Seed NodeMomentumDevice Manual? 0 Play Time 14:45:00 Cumulative 246.4 hours Start 2020.09.19 @ 18:59:55 End 2020.10.15 @ 23:22:50 Sessions 89 Manual Loads 0 Difficulty Rogue Special Mode None Game No. 99 Rogue 99 Adventurer 0 Explorer 0 Win Type 0 Total 8 Types 7/0/0/1/0/0/0/0/0 Lore% 81 Gallery% 80 Achievement% 73 Wizard Run 0 Options --------- ASCII 1 Keyboard 0 Movement Numpad Keybinds 0 Fullscreen 1 Font 18/Cog Map View 76x50 Tactical HUD 1 Map Filters NONE Filters NONE Steam 1 RUN: 7eb2ba0f-6f67-4ee8-b31f-eb72ca31178e